Publisher Label,Publisher URI,"Supplier","Invoice ","Amount (£)","Purpose","Transaction Number","Payment Date","Organisational Unit","Cost Centre(T)","Internal category number"
"Wolverhampton City Council","http://opendatacommunities.org/id/metropolitan-district-council/wolverhampton","Access Tail Lift Services Limited","18663","57.44","Services - Professional Fees","190110578","01/04/15","Fleet Services","Fleet Management","R4400"
"Wolverhampton City Council","http://opendatacommunities.org/id/metropolitan-district-council/wolverhampton","Access Tail Lift Services Limited","18663","57.44","Services - Professional Fees","190110578","01/04/15","Fleet Services","Fleet Management","R4400"
"Wolverhampton City Council","http://opendatacommunities.org/id/metropolitan-district-council/wolverhampton","Access Tail Lift Services Limited","18663","57.54","Services - Professional Fees","190110578","01/04/15","Fleet Services","Fleet Management","R4400"
"Wolverhampton City Council","http://opendatacommunities.org/id/metropolitan-district-council/wolverhampton","Access Tail Lift Services Limited","18663","57.44","Services - Professional Fees","190110578","01/04/15","Fleet Services","Fleet Management","R4400"
"Wolverhampton City Council","http://opendatacommunities.org/id/metropolitan-district-council/wolverhampton","Access Tail Lift Services Limited","18663","57.44","Services - Professional Fees","190110578","01/04/15","Fleet Services","Fleet Management","R4400"
"Wolverhampton City Council","http://opendatacommunities.org/id/metropolitan-district-council/wolverhampton","Access Tail Lift Services Limited","18663","57.44","Services - Professional Fees","190110578","01/04/15","Fleet Services","Fleet Management","R4400"
"Wolverhampton City Council","http://opendatacommunities.org/id/metropolitan-district-council/wolverhampton","Access To Business","250","3,176.15","Grant Payments","130063526","01/04/15","Adult Education","NESS Neigh/hood Employment & Skills Serv","R4700"
"Wolverhampton City Council","http://opendatacommunities.org/id/metropolitan-district-council/wolverhampton","Acuma Solutions Limited","SIN015289","19,135.74","Computing - Maint Agreements","130064043","01/04/15","ICTS","Strategic ICTS (ICT Service Budget)","R4534"
"Wolverhampton City Council","http://opendatacommunities.org/id/metropolitan-district-council/wolverhampton","Adt Fire And Security PLC","28875183-02","103.00","Fixtures and Fittings - R&M","130062042","01/04/15","Social Inclusion & Play Service","MAST 8 - Wednesfield","R2502"
"Wolverhampton City Council","http://opendatacommunities.org/id/metropolitan-district-council/wolverhampton","Adt Fire And Security PLC","29025452-02","305.45","Fixtures and Fittings - R&M","130062726","01/04/15","Environmental Maintenance","Bantock Park","R2502"
"Wolverhampton City Council","http://opendatacommunities.org/id/metropolitan-district-council/wolverhampton","Adt Fire And Security PLC","29025233-02","1,052.58","Fixtures and Fittings - R&M","130062725","01/04/15","Environmental Maintenance","Fowlers Park","R2502"
"Wolverhampton City Council","http://opendatacommunities.org/id/metropolitan-district-council/wolverhampton","Af Blakemore/Blakemore Foodservice","4558817","462.56","Provisions (Resale)","130063037","01/04/15","Older People Provider Services","Woden Resource Centre","R4102"
"Wolverhampton City Council","http://opendatacommunities.org/id/metropolitan-district-council/wolverhampton","Af Blakemore/Blakemore Foodservice","4558817","-462.56","Provisions (Resale)","130063037","01/04/15","Older People Provider Services","Woden Resource Centre","R4102"
"Wolverhampton City Council","http://opendatacommunities.org/id/metropolitan-district-council/wolverhampton","Af Blakemore/Blakemore Foodservice","4558817","397.75","Provisions (Resale)","130063037","01/04/15","Older People Provider Services","Woden Resource Centre","R4102"
"Wolverhampton City Council","http://opendatacommunities.org/id/metropolitan-district-council/wolverhampton","Af Blakemore/Blakemore Foodservice","4558817","64.81","Provisions (Resale)","130063037","01/04/15","Older People Provider Services","Woden Resource Centre","R4102"
"Wolverhampton City Council","http://opendatacommunities.org/id/metropolitan-district-council/wolverhampton","Af Blakemore/Blakemore Foodservice","4563037","220.29","Provisions (Resale)","130063821","01/04/15","Culture Arts & Heritage","Bantock - Tea Rooms","R4102"
"Wolverhampton City Council","http://opendatacommunities.org/id/metropolitan-district-council/wolverhampton","Af Blakemore/Blakemore Foodservice","4563037","137.37","Provisions (Resale)","130063821","01/04/15","Culture Arts & Heritage","Bantock - Tea Rooms","R4102"
"Wolverhampton City Council","http://opendatacommunities.org/id/metropolitan-district-council/wolverhampton","Af Blakemore/Blakemore Foodservice","4563037","357.66","Provisions (Resale)","130063821","01/04/15","Culture Arts & Heritage","Bantock - Tea Rooms","R4102"
"Wolverhampton City Council","http://opendatacommunities.org/id/metropolitan-district-council/wolverhampton","Af Blakemore/Blakemore Foodservice","4563037","-357.66","Provisions (Resale)","130063821","01/04/15","Culture Arts & Heritage","Bantock - Tea Rooms","R4102"
"Wolverhampton City Council","http://opendatacommunities.org/id/metropolitan-district-council/wolverhampton","Af Blakemore/Blakemore Foodservice","4564890","-103.14","Provisions (Resale)","130063290","01/04/15","Older People Provider Services","Woden Resource Centre","R4102"
"Wolverhampton City Council","http://opendatacommunities.org/id/metropolitan-district-council/wolverhampton","Af Blakemore/Blakemore Foodservice","4564772","-5.26","Provisions (Resale)","130063289","01/04/15","Older People Provider Services","Woden Resource Centre","R4102"
"Wolverhampton City Council","http://opendatacommunities.org/id/metropolitan-district-council/wolverhampton","Af Blakemore/Blakemore Foodservice","4569492","103.28","Provisions (Resale)","130063292","01/04/15","Learning Disability Provider","Duke Street Bungalows","R4102"
"Wolverhampton City Council","http://opendatacommunities.org/id/metropolitan-district-council/wolverhampton","Af Blakemore/Blakemore Foodservice","4323706","207.01","Provisions (Resale)","130051010","01/04/15","Older People Provider Services","Nelson Mandela House","R4102"
"Wolverhampton City Council","http://opendatacommunities.org/id/metropolitan-district-council/wolverhampton","Af Blakemore/Blakemore Foodservice","4386526","79.34","Provisions (Resale)","130051036","01/04/15","Older People Provider Services","Nelson Mandela House","R4102"
"Wolverhampton City Council","http://opendatacommunities.org/id/metropolitan-district-council/wolverhampton","Af Blakemore/Blakemore Foodservice","4386526","6.93","Provisions (Resale)","130051036","01/04/15","Older People Provider Services","Nelson Mandela House","R4102"
"Wolverhampton City Council","http://opendatacommunities.org/id/metropolitan-district-council/wolverhampton","Af Blakemore/Blakemore Foodservice","4323706","358.39","Provisions (Resale)","130051010","01/04/15","Older People Provider Services","Nelson Mandela House","R4102"
"Wolverhampton City Council","http://opendatacommunities.org/id/metropolitan-district-council/wolverhampton","Af Blakemore/Blakemore Foodservice","4529064","24.48","Provisions (Resale)","130063030","01/04/15","Older People Provider Services","Bradley Lodge Resource Centre","R4102"
"Wolverhampton City Council","http://opendatacommunities.org/id/metropolitan-district-council/wolverhampton","Af Blakemore/Blakemore Foodservice","4529064","-24.48","Provisions (Resale)","130063030","01/04/15","Older People Provider Services","Bradley Lodge Resource Centre","R4102"
"Wolverhampton City Council","http://opendatacommunities.org/id/metropolitan-district-council/wolverhampton","Af Blakemore/Blakemore Foodservice","4529064","13.98","Provisions (Resale)","130063030","01/04/15","Older People Provider Services","Bradley Lodge Resource Centre","R4102"
"Wolverhampton City Council","http://opendatacommunities.org/id/metropolitan-district-council/wolverhampton","Af Blakemore/Blakemore Foodservice","4529064","10.50","Provisions (Resale)","130063030","01/04/15","Older People Provider Services","Bradley Lodge Resource Centre","R4102"
"Wolverhampton City Council","http://opendatacommunities.org/id/metropolitan-district-council/wolverhampton","Af Blakemore/Blakemore Foodservice","4542085","436.17","Provisions (Resale)","130063031","01/04/15","Older People Provider Services","Bradley Lodge Resource Centre","R4102"
"Wolverhampton City Council","http://opendatacommunities.org/id/metropolitan-district-council/wolverhampton","Af Blakemore/Blakemore Foodservice","4542085","-436.17","Provisions (Resale)","130063031","01/04/15","Older People Provider Services","Bradley Lodge Resource Centre","R4102"
"Wolverhampton City Council","http://opendatacommunities.org/id/metropolitan-district-council/wolverhampton","Af Blakemore/Blakemore Foodservice","4542085","403.39","Provisions (Resale)","130063031","01/04/15","Older People Provider Services","Bradley Lodge Resource Centre","R4102"
"Wolverhampton City Council","http://opendatacommunities.org/id/metropolitan-district-council/wolverhampton","Af Blakemore/Blakemore Foodservice","4542085","32.78","Provisions (Resale)","130063031","01/04/15","Older People Provider Services","Bradley Lodge Resource Centre","R4102"
"Wolverhampton City Council","http://opendatacommunities.org/id/metropolitan-district-council/wolverhampton","Af Blakemore/Blakemore Foodservice","4558371","29.96","Provisions (Resale)","130063036","01/04/15","Older People Provider Services","Bradley Lodge Resource Centre","R4102"
"Wolverhampton City Council","http://opendatacommunities.org/id/metropolitan-district-council/wolverhampton","Af Blakemore/Blakemore Foodservice","4553453","10.93","Provisions (Resale)","130063034","01/04/15","Older People Provider Services","Bradley Lodge Resource Centre","R4102"
"Wolverhampton City Council","http://opendatacommunities.org/id/metropolitan-district-council/wolverhampton","Af Blakemore/Blakemore Foodservice","4554465","277.40","Provisions (Resale)","130063035","01/04/15","Older People Provider Services","Bradley Lodge Resource Centre","R4102"
"Wolverhampton City Council","http://opendatacommunities.org/id/metropolitan-district-council/wolverhampton","Af Blakemore/Blakemore Foodservice","4554465","-277.40","Provisions (Resale)","130063035","01/04/15","Older People Provider Services","Bradley Lodge Resource Centre","R4102"
"Wolverhampton City Council","http://opendatacommunities.org/id/metropolitan-district-council/wolverhampton","Af Blakemore/Blakemore Foodservice","4554465","256.43","Provisions (Resale)","130063035","01/04/15","Older People Provider Services","Bradley Lodge Resource Centre","R4102"
"Wolverhampton City Council","http://opendatacommunities.org/id/metropolitan-district-council/wolverhampton","Af Blakemore/Blakemore Foodservice","4554465","20.97","Provisions (Resale)","130063035","01/04/15","Older People Provider Services","Bradley Lodge Resource Centre","R4102"
"Wolverhampton City Council","http://opendatacommunities.org/id/metropolitan-district-council/wolverhampton","Af Blakemore/Blakemore Foodservice","4568067","88.79","Provisions (Resale)","130063291","01/04/15","Older People Provider Services","Woden Resource Centre","R4102"
"Wolverhampton City Council","http://opendatacommunities.org/id/metropolitan-district-council/wolverhampton","Af Blakemore/Blakemore Foodservice","4559758","50.02","Provisions (Resale)","130063038","01/04/15","Older People Provider Services","Woden Resource Centre","R4102"
"Wolverhampton City Council","http://opendatacommunities.org/id/metropolitan-district-council/wolverhampton","Af Blakemore/Blakemore Foodservice","4568067","280.00","Provisions (Resale)","130063291","01/04/15","Older People Provider Services","Woden Resource Centre","R4102"
"Wolverhampton City Council","http://opendatacommunities.org/id/metropolitan-district-council/wolverhampton","Af Blakemore/Blakemore Foodservice","4568067","-280.00","Provisions (Resale)","130063291","01/04/15","Older People Provider Services","Woden Resource Centre","R4102"
"Wolverhampton City Council","http://opendatacommunities.org/id/metropolitan-district-council/wolverhampton","Af Blakemore/Blakemore Foodservice","4568067","191.21","Provisions (Resale)","130063291","01/04/15","Older People Provider Services","Woden Resource Centre","R4102"
"Wolverhampton City Council","http://opendatacommunities.org/id/metropolitan-district-council/wolverhampton","Af Blakemore/Blakemore Foodservice","4438701","5.18","Provisions (Resale)","130051065","01/04/15","Older People Provider Services","Nelson Mandela House","R4102"
"Wolverhampton City Council","http://opendatacommunities.org/id/metropolitan-district-council/wolverhampton","Af Blakemore/Blakemore Foodservice","4438701","145.26","Provisions (Resale)","130051065","01/04/15","Older People Provider Services","Nelson Mandela House","R4102"
"Wolverhampton City Council","http://opendatacommunities.org/id/metropolitan-district-council/wolverhampton","Af Blakemore/Blakemore Foodservice","4362087","464.93","Provisions (Resale)","130051029","01/04/15","Older People Provider Services","Nelson Mandela House","R4102"
"Wolverhampton City Council","http://opendatacommunities.org/id/metropolitan-district-council/wolverhampton","Af Blakemore/Blakemore Foodservice","4375162","73.14","Provisions (Resale)","130051033","01/04/15","Older People Provider Services","Nelson Mandela House","R4102"
"Wolverhampton City Council","http://opendatacommunities.org/id/metropolitan-district-council/wolverhampton","Af Blakemore/Blakemore Foodservice","4375162","5.18","Provisions (Resale)","130051033","01/04/15","Older People Provider Services","Nelson Mandela House","R4102"
"Wolverhampton City Council","http://opendatacommunities.org/id/metropolitan-district-council/wolverhampton","Af Blakemore/Blakemore Foodservice","4362087","140.29","Provisions (Resale)","130051029","01/04/15","Older People Provider Services","Nelson Mandela House","R4102"
"Wolverhampton City Council","http://opendatacommunities.org/id/metropolitan-district-council/wolverhampton","Af Blakemore/Blakemore Foodservice","4559758","-50.02","Provisions (Resale)","130063038","01/04/15","Older People Provider Services","Woden Resource Centre","R4102"
"Wolverhampton City Council","http://opendatacommunities.org/id/metropolitan-district-council/wolverhampton","Af Blakemore/Blakemore Foodservice","4559758","14.17","Provisions (Resale)","130063038","01/04/15","Older People Provider Services","Woden Resource Centre","R4102"
"Wolverhampton City Council","http://opendatacommunities.org/id/metropolitan-district-council/wolverhampton","Af Blakemore/Blakemore Foodservice","4559758","35.85","Provisions (Resale)","130063038","01/04/15","Older People Provider Services","Woden Resource Centre","R4102"
"Wolverhampton City Council","http://opendatacommunities.org/id/metropolitan-district-council/wolverhampton","Agilisys Limited","1215702","1,850.00","Computing - Purchase of Software","130058496","01/04/15","Central Corporate Budgets","FutureWorks Programme Team","R4531"
"Wolverhampton City Council","http://opendatacommunities.org/id/metropolitan-district-council/wolverhampton","Aidapt Bathrooms Limited","190258","1,194.00","Equipment - Purchase","130063005","01/04/15","Independent Living Service","Independent Living Service","R4000"
"Wolverhampton City Council","http://opendatacommunities.org/id/metropolitan-district-council/wolverhampton","Air Methods Limited","PSI64478","750.00","Equipment - R & M","190111232","01/04/15","Fleet Services","Fleet Management","R4003"
"Wolverhampton City Council","http://opendatacommunities.org/id/metropolitan-district-council/wolverhampton","Aldersley High Sch/Aldersley Acad Tr","SEN Resource Base Spring Term Top Up Aldersley","9,025.67","Grant Payments","190110850","01/04/15","Schools","Schools Other Related Expenditure - Contingencies","R4700"
"Wolverhampton City Council","http://opendatacommunities.org/id/metropolitan-district-council/wolverhampton","Aldersley High Sch/Aldersley Acad Tr","SEN Top Up Spring Term Aldersley","2,956.39","Grant Payments","190110833","01/04/15","Schools","Schools Other Related Expenditure - Contingencies","R4700"
"Wolverhampton City Council","http://opendatacommunities.org/id/metropolitan-district-council/wolverhampton","All Saints Action Network Limited","TFT Spring Final 15","12,787.50","Grant Payments","190110349","01/04/15","Childrens Centres & Early Years","2 Year Olds Pilot - Early Learning & Childcare","R4700"
"Wolverhampton City Council","http://opendatacommunities.org/id/metropolitan-district-council/wolverhampton","Als-Holdings Limited T/A Ac Education","11869","7,300.00","Training Expenses","130062665","01/04/15","Looked After Children","Fostering Team & Allowances","R1650"
"Wolverhampton City Council","http://opendatacommunities.org/id/metropolitan-district-council/wolverhampton","Angel Springs Limited","2413004","156.40","R&M - Departmental planned (internal)","130053180","01/04/15","Engineering & Civic Centre","Civic Centre","R2000"
"Wolverhampton City Council","http://opendatacommunities.org/id/metropolitan-district-council/wolverhampton","Angel Springs Limited","2546237","10.30","Provisions (Not for resale)","130056132","01/04/15","Customer Services","City Direct","R4101"
"Wolverhampton City Council","http://opendatacommunities.org/id/metropolitan-district-council/wolverhampton","Angel Springs Limited","2546237","19.44","Provisions (Not for resale)","130056132","01/04/15","Customer Services","City Direct","R4101"
"Wolverhampton City Council","http://opendatacommunities.org/id/metropolitan-district-council/wolverhampton","Angel Springs Limited","2579266","9.72","Provisions (Not for resale)","130063527","01/04/15","Mental Health Provider","46a, Second Avenue, Low Hill","R4101"
"Wolverhampton City Council","http://opendatacommunities.org/id/metropolitan-district-council/wolverhampton","Anglia Dna Services Limited","25732","139.00","Services - Professional Fees","130064116","01/04/15","Children in Need & Child Protection","Head of Service - CINCP","R4400"
"Wolverhampton City Council","http://opendatacommunities.org/id/metropolitan-district-council/wolverhampton","Anglia Dna Services Limited","25725","135.00","Services - Professional Fees","130064115","01/04/15","Children in Need & Child Protection","Head of Service - CINCP","R4400"
"Wolverhampton City Council","http://opendatacommunities.org/id/metropolitan-district-council/wolverhampton","Antalis Limited","VQ 4077277","1,125.76","Stationery","130060198","01/04/15","ICTS","Document Centre - General","R4308"
"Wolverhampton City Council","http://opendatacommunities.org/id/metropolitan-district-council/wolverhampton","Argos Business Solutions Limited","01268027","50.78","Equipment - Purchase","130058001","01/04/15","Children in Need & Child Protection","Children & Family Contact Services","R4000"
"Wolverhampton City Council","http://opendatacommunities.org/id/metropolitan-district-council/wolverhampton","Argos Business Solutions Limited","01265712","74.51","Equipment - Purchase","130056655","01/04/15","Children in Need & Child Protection","Children & Family Contact Services","R4000"
"Wolverhampton City Council","http://opendatacommunities.org/id/metropolitan-district-council/wolverhampton","Argos Business Solutions Limited","01272802","-47.49","Equipment - Purchase","130060016","01/04/15","Children in Need & Child Protection","Children & Family Contact Services","R4000"
"Wolverhampton City Council","http://opendatacommunities.org/id/metropolitan-district-council/wolverhampton","Argos Business Solutions Limited","01273117","-74.51","Equipment - Purchase","130061061","01/04/15","Children in Need & Child Protection","Children & Family Contact Services","R4000"
"Wolverhampton City Council","http://opendatacommunities.org/id/metropolitan-district-council/wolverhampton","Argos Business Solutions Limited","01268293","-3.29","Equipment - Purchase","130058651","01/04/15","Children in Need & Child Protection","Children & Family Contact Services","R4000"
"Wolverhampton City Council","http://opendatacommunities.org/id/metropolitan-district-council/wolverhampton","Arjohuntleigh UK","16680","146.00","Equipment - Purchase","130064088","01/04/15","Learning Disability Provider","Duke Street Bungalows","R4000"
"Wolverhampton City Council","http://opendatacommunities.org/id/metropolitan-district-council/wolverhampton","Arthur Brett (Catering) Limited","WI901789","419.96","Provisions (Resale)","130062889","01/04/15","Contracts","Children Diet and Physical Activity","R4102"
"Wolverhampton City Council","http://opendatacommunities.org/id/metropolitan-district-council/wolverhampton","Arthur Brett (Catering) Limited","ID750391","88.44","Provisions (Resale)","130063958","01/04/15","Culture Arts & Heritage","Art Gallery Tea Room","R4102"
"Wolverhampton City Council","http://opendatacommunities.org/id/metropolitan-district-council/wolverhampton","Arthur Brett (Catering) Limited","ID750444","96.91","Provisions (Resale)","130063959","01/04/15","Culture Arts & Heritage","Bantock - Tea Rooms","R4102"
"Wolverhampton City Council","http://opendatacommunities.org/id/metropolitan-district-council/wolverhampton","Arthur Brett (Catering) Limited","WI901438","617.72","Provisions (Resale)","130060770","01/04/15","Contracts","Children Diet and Physical Activity","R4102"
"Wolverhampton City Council","http://opendatacommunities.org/id/metropolitan-district-council/wolverhampton","Arthur Brett (Catering) Limited","ID747371","58.48","Provisions (Resale)","130062102","01/04/15","Leisure Services","WV Active Catering","R4102"
"Wolverhampton City Council","http://opendatacommunities.org/id/metropolitan-district-council/wolverhampton","Arthur Brett (Catering) Limited","ID749331","14.44","Provisions (Resale)","130062862","01/04/15","Leisure Services","WV Active Catering","R4102"
"Wolverhampton City Council","http://opendatacommunities.org/id/metropolitan-district-council/wolverhampton","Arthur Brett (Catering) Limited","ID750719","31.28","Provisions (Resale)","130064228","01/04/15","Leisure Services","WV Active Catering","R4102"
"Wolverhampton City Council","http://opendatacommunities.org/id/metropolitan-district-council/wolverhampton","Arthur Brett (Catering) Limited","ID750133","114.80","Provisions (Resale)","130063660","01/04/15","Culture Arts & Heritage","Bantock - Tea Rooms","R4102"
"Wolverhampton City Council","http://opendatacommunities.org/id/metropolitan-district-council/wolverhampton","Arthur Brett (Catering) Limited","ID747906","26.06","Provisions (Resale)","130063957","01/04/15","Older People Provider Services","Woden Resource Centre","R4102"
"Wolverhampton City Council","http://opendatacommunities.org/id/metropolitan-district-council/wolverhampton","Arthur Brett (Catering) Limited","280215","635.14","Provisions (Resale)","130064497","01/04/15","Catering","Civic Centre Catering","R4102"
"Wolverhampton City Council","http://opendatacommunities.org/id/metropolitan-district-council/wolverhampton","Arthur Brett (Catering) Limited","280215","453.67","Provisions (Resale)","130064497","01/04/15","Catering","Bert Williams Leisure Centre Caf�","R4102"
"Wolverhampton City Council","http://opendatacommunities.org/id/metropolitan-district-council/wolverhampton","Arthur Brett (Catering) Limited","280215","362.94","Provisions (Resale)","130064497","01/04/15","Catering","Meals on Wheels","R4102"
"Wolverhampton City Council","http://opendatacommunities.org/id/metropolitan-district-council/wolverhampton","Arthur Brett (Catering) Limited","280215","24,498.23","Provisions (Resale)","130064497","01/04/15","Catering","Education Catering - General Overheads","R4102"
"Wolverhampton City Council","http://opendatacommunities.org/id/metropolitan-district-council/wolverhampton","Arthur Brett (Catering) Limited","ID744577","48.34","Provisions (Resale)","130061006","01/04/15","Older People Provider Services","Bradley Lodge Resource Centre","R4102"
"Wolverhampton City Council","http://opendatacommunities.org/id/metropolitan-district-council/wolverhampton","Arthur Brett (Catering) Limited","CN26015","-3.13","Provisions (Resale)","130063340","01/04/15","Learning Disability Provider","Duke Street Bungalows","R4102"
"Wolverhampton City Council","http://opendatacommunities.org/id/metropolitan-district-council/wolverhampton","Arthur Brett (Catering) Limited","ID706946","33.06","Provisions (Resale)","130038206","01/04/15","Older People Provider Services","Bradley Lodge Resource Centre","R4102"
"Wolverhampton City Council","http://opendatacommunities.org/id/metropolitan-district-council/wolverhampton","Arthur Brett (Catering) Limited","ID704354","45.19","Provisions (Resale)","130036728","01/04/15","Older People Provider Services","Bradley Lodge Resource Centre","R4102"
"Wolverhampton City Council","http://opendatacommunities.org/id/metropolitan-district-council/wolverhampton","Arthur Brett (Catering) Limited","ID745448","58.83","Provisions (Resale)","130063305","01/04/15","Older People Provider Services","Woden Resource Centre","R4102"
"Wolverhampton City Council","http://opendatacommunities.org/id/metropolitan-district-council/wolverhampton","Arthur Brett (Catering) Limited","WI901566","415.76","Provisions (Resale)","130062888","01/04/15","Contracts","Children Diet and Physical Activity","R4102"
"Wolverhampton City Council","http://opendatacommunities.org/id/metropolitan-district-council/wolverhampton","Arthur Brett (Catering) Limited","CN26020","-8.40","Provisions (Resale)","130063341","01/04/15","Learning Disability Provider","Duke Street Bungalows","R4102"
"Wolverhampton City Council","http://opendatacommunities.org/id/metropolitan-district-council/wolverhampton","Arthur Brett (Catering) Limited","ID747556","4.57","Provisions (Resale)","130063659","01/04/15","Learning Disability Provider","Duke Street Bungalows","R4102"
"Wolverhampton City Council","http://opendatacommunities.org/id/metropolitan-district-council/wolverhampton","Arthur Brett (Catering) Limited","ID747555","21.96","Provisions (Resale)","130063658","01/04/15","Learning Disability Provider","Duke Street Bungalows","R4102"
"Wolverhampton City Council","http://opendatacommunities.org/id/metropolitan-district-council/wolverhampton","Arthur Brett (Catering) Limited","ID749923","98.90","Provisions (Resale)","130063373","01/04/15","Culture Arts & Heritage","Art Gallery Tea Room","R4102"
"Wolverhampton City Council","http://opendatacommunities.org/id/metropolitan-district-council/wolverhampton","Arthur Brett (Catering) Limited","ID749917","52.17","Provisions (Resale)","130063372","01/04/15","Culture Arts & Heritage","Bantock - Tea Rooms","R4102"
"Wolverhampton City Council","http://opendatacommunities.org/id/metropolitan-district-council/wolverhampton","Asdan Limited","220556","350.00","Subscriptions","130063777","01/04/15","Youth Offending","Youth Offending Team","R4701"
"Wolverhampton City Council","http://opendatacommunities.org/id/metropolitan-district-council/wolverhampton","Asdan Limited","220556","-350.00","Subscriptions","130063777","01/04/15","Youth Offending","Youth Offending Team","R4701"
"Wolverhampton City Council","http://opendatacommunities.org/id/metropolitan-district-council/wolverhampton","Asdan Limited","220556","350.00","Subscriptions","130063777","01/04/15","Youth Offending","Youth Offending Team","R4701"
"Wolverhampton City Council","http://opendatacommunities.org/id/metropolitan-district-council/wolverhampton","Asdan Limited","220594","290.00","Training Expenses","130063778","01/04/15","Youth Offending","Youth Offending Team","R1650"
"Wolverhampton City Council","http://opendatacommunities.org/id/metropolitan-district-council/wolverhampton","Ashmore Park Community Association","5th March 2015","225.00","Construction and Conversion","130063585","01/04/15","","Contingency for Emergency Works","C1100"
"Wolverhampton City Council","http://opendatacommunities.org/id/metropolitan-district-council/wolverhampton","Ashmore Park Community Association","5th March 2015","-225.00","Construction and Conversion","130063585","01/04/15","","Contingency for Emergency Works","C1100"
"Wolverhampton City Council","http://opendatacommunities.org/id/metropolitan-district-council/wolverhampton","Ashmore Park Community Association","5th March 2015","225.00","Construction and Conversion","130063585","01/04/15","","Contingency for Emergency Works","C1100"
"Wolverhampton City Council","http://opendatacommunities.org/id/metropolitan-district-council/wolverhampton","Auto Time Solutions Limited","Pro-forma - 16014774","89.00","Computing - Maint Agreements","130063156","01/04/15","Social Inclusion & Play Service","Families In Focus","R4534"
"Wolverhampton City Council","http://opendatacommunities.org/id/metropolitan-district-council/wolverhampton","Autodata Limited","167797","79.50","Stationery","190111202","01/04/15","Fleet Services","Fleet Management","R4308"
"Wolverhampton City Council","http://opendatacommunities.org/id/metropolitan-district-council/wolverhampton","Badenoch & Clark Recruit. Specialist","4646423","1,414.20","Agency Staff","130064391","01/04/15","Service Director City Assets","Business Change & Support Services","R1100"
"Wolverhampton City Council","http://opendatacommunities.org/id/metropolitan-district-council/wolverhampton","Badenoch & Clark Recruit. Specialist","4646426","735.19","Agency Staff","130064394","01/04/15","HR Advice","HR Advice","R1100"
"Wolverhampton City Council","http://opendatacommunities.org/id/metropolitan-district-council/wolverhampton","Badenoch & Clark Recruit. Specialist","4640826","2,050.00","Agency Staff","130062756","01/04/15","Strategic Financial Services","Corporate Procurement Unit","R1100"
"Wolverhampton City Council","http://opendatacommunities.org/id/metropolitan-district-council/wolverhampton","Badenoch & Clark Recruit. Specialist","4643677","1,414.20","Agency Staff","130063826","01/04/15","Service Director City Assets","Business Change & Support Services","R1100"
"Wolverhampton City Council","http://opendatacommunities.org/id/metropolitan-district-council/wolverhampton","Badenoch & Clark Recruit. Specialist","4640825","2,713.50","Agency Staff","130062755","01/04/15","Strategic Financial Services","Corporate Procurement Unit","R1100"
"Wolverhampton City Council","http://opendatacommunities.org/id/metropolitan-district-council/wolverhampton","Badenoch & Clark Recruit. Specialist","4643678","706.15","Agency Staff","130063827","01/04/15","HR Advice","HR Advice","R1100"
"Wolverhampton City Council","http://opendatacommunities.org/id/metropolitan-district-council/wolverhampton","Badenoch & Clark Recruit. Specialist","4643682","735.19","Agency Staff","130063830","01/04/15","HR Advice","HR Advice","R1100"
"Wolverhampton City Council","http://opendatacommunities.org/id/metropolitan-district-council/wolverhampton","Badenoch & Clark Recruit. Specialist","4643679","1,588.23","Agency Staff","130063828","01/04/15","Strategic Financial Services","Strategic Financial Services","R1100"
"Wolverhampton City Council","http://opendatacommunities.org/id/metropolitan-district-council/wolverhampton","Badenoch & Clark Recruit. Specialist","4640820","3,015.00","Agency Staff","130062751","01/04/15","Strategic Financial Services","Corporate Procurement Unit","R1100"
"Wolverhampton City Council","http://opendatacommunities.org/id/metropolitan-district-council/wolverhampton","Badenoch & Clark Recruit. Specialist","4640827","890.63","Agency Staff","130063048","01/04/15","Strategic Financial Services","Strategic Financial Services","R1100"
"Wolverhampton City Council","http://opendatacommunities.org/id/metropolitan-district-council/wolverhampton","Badenoch & Clark Recruit. Specialist","4640823","819.91","Agency Staff","130062753","01/04/15","Strategic Financial Services","Strategic Financial Services","R1100"
"Wolverhampton City Council","http://opendatacommunities.org/id/metropolitan-district-council/wolverhampton","Badenoch & Clark Recruit. Specialist","4640811","1,370.67","Agency Staff","130062749","01/04/15","Strategic Financial Services","Strategic Financial Services","R1100"
"Wolverhampton City Council","http://opendatacommunities.org/id/metropolitan-district-council/wolverhampton","Bains Supersave Limited","APNEWS 011","68.69","Publications","130063330","01/04/15","Library Services","Ashmore Park Library","R4310"
"Wolverhampton City Council","http://opendatacommunities.org/id/metropolitan-district-council/wolverhampton","Barts Busy Bees","TFT Final Spring 15","3,431.25","Grant Payments","190110347","01/04/15","Childrens Centres & Early Years","2 Year Olds Pilot - Early Learning & Childcare","R4700"
"Wolverhampton City Council","http://opendatacommunities.org/id/metropolitan-district-council/wolverhampton","Base 25","2110","270.00","TPP - Social Care Support Services","130062716","01/04/15","Social Inclusion & Play Service","MAST 8 - Wednesfield","R5501"
"Wolverhampton City Council","http://opendatacommunities.org/id/metropolitan-district-council/wolverhampton","Bbp.Security Services & Training Limited","432SAT240315","600.00","Services - Security","130063029","01/04/15","Engineering & Civic Centre","Management of Vacant Properties","R4405"
"Wolverhampton City Council","http://opendatacommunities.org/id/metropolitan-district-council/wolverhampton","Bbp.Security Services & Training Limited","005FM240315","599.64","Services - Security","130062943","01/04/15","Cleaning & Caretaking Service","Schools Cleaning","R4405"
"Wolverhampton City Council","http://opendatacommunities.org/id/metropolitan-district-council/wolverhampton","Bbp.Security Services & Training Limited","004FM230315","170.00","Services - Security","130062579","01/04/15","Cleaning & Caretaking Service","Parkfields Office Accomodation","R4405"
"Wolverhampton City Council","http://opendatacommunities.org/id/metropolitan-district-council/wolverhampton","BCC Mac T/A St Edmund�s Catholic","SEN Top Up Spring Term St Edmunds","2,598.03","Grant Payments","190110843","01/04/15","Schools","Schools Other Related Expenditure - Contingencies","R4700"
"Wolverhampton City Council","http://opendatacommunities.org/id/metropolitan-district-council/wolverhampton","BCC Mac T/A St Michaels Catholic","SEN Top Up Spring Term St Michaels","3,941.86","Grant Payments","190110846","01/04/15","Schools","Schools Other Related Expenditure - Contingencies","R4700"
"Wolverhampton City Council","http://opendatacommunities.org/id/metropolitan-district-council/wolverhampton","BCC Mac T/A The Giffard Catholic","SEN Top Up Spring Term The Giffard","1,970.93","Grant Payments","190110847","01/04/15","Schools","Schools Other Related Expenditure - Contingencies","R4700"
"Wolverhampton City Council","http://opendatacommunities.org/id/metropolitan-district-council/wolverhampton","Beacon Centre For The Blind","BCI21890","97.30","Room Hire","130063098","01/04/15","Healthier Places Service","Healthy Schools Team","R2201"
"Wolverhampton City Council","http://opendatacommunities.org/id/metropolitan-district-council/wolverhampton","Beacon Centre For The Blind","BCI21890","-97.30","Room Hire","130063098","01/04/15","Healthier Places Service","Healthy Schools Team","R2201"
"Wolverhampton City Council","http://opendatacommunities.org/id/metropolitan-district-council/wolverhampton","Beacon Centre For The Blind","BCI21890","38.50","Room Hire","130063098","01/04/15","Healthier Places Service","Healthy Schools Team","R2201"
"Wolverhampton City Council","http://opendatacommunities.org/id/metropolitan-district-council/wolverhampton","Beacon Centre For The Blind","BCI21890","58.80","Room Hire","130063098","01/04/15","Healthier Places Service","Healthy Schools Team","R2201"
"Wolverhampton City Council","http://opendatacommunities.org/id/metropolitan-district-council/wolverhampton","Beacon Centre For The Blind","BCI22248","99.00","Room Hire","130063100","01/04/15","Healthier Places Service","Healthy Schools Team","R2201"
"Wolverhampton City Council","http://opendatacommunities.org/id/metropolitan-district-council/wolverhampton","Beacon Centre For The Blind","BCI22248","-99.00","Room Hire","130063100","01/04/15","Healthier Places Service","Healthy Schools Team","R2201"
"Wolverhampton City Council","http://opendatacommunities.org/id/metropolitan-district-council/wolverhampton","Beacon Centre For The Blind","BCI22248","33.00","Room Hire","130063100","01/04/15","Healthier Places Service","Healthy Schools Team","R2201"
"Wolverhampton City Council","http://opendatacommunities.org/id/metropolitan-district-council/wolverhampton","Beacon Centre For The Blind","BCI22248","66.00","Room Hire","130063100","01/04/15","Healthier Places Service","Healthy Schools Team","R2201"
"Wolverhampton City Council","http://opendatacommunities.org/id/metropolitan-district-council/wolverhampton","Beacon Centre For The Blind","BCI22044","123.75","Room Hire","130063099","01/04/15","Healthier Places Service","Healthy Schools Team","R2201"
"Wolverhampton City Council","http://opendatacommunities.org/id/metropolitan-district-council/wolverhampton","Beacon Centre For The Blind","BCI22044","-123.75","Room Hire","130063099","01/04/15","Healthier Places Service","Healthy Schools Team","R2201"
"Wolverhampton City Council","http://opendatacommunities.org/id/metropolitan-district-council/wolverhampton","Beacon Centre For The Blind","BCI22044","41.25","Room Hire","130063099","01/04/15","Healthier Places Service","Healthy Schools Team","R2201"
"Wolverhampton City Council","http://opendatacommunities.org/id/metropolitan-district-council/wolverhampton","Beacon Centre For The Blind","BCI22044","82.50","Room Hire","130063099","01/04/15","Healthier Places Service","Healthy Schools Team","R2201"
"Wolverhampton City Council","http://opendatacommunities.org/id/metropolitan-district-council/wolverhampton","Beverages Direct Limited","670612","35.02","Provisions (Resale)","130063590","01/04/15","Catering","Education Catering - General Overheads","R4102"
"Wolverhampton City Council","http://opendatacommunities.org/id/metropolitan-district-council/wolverhampton","Bickford Truck Hire Limited","308815","525.00","Hire of Vehicles","190110981","01/04/15","Fleet Services","Fleet Management","R3200"
"Wolverhampton City Council","http://opendatacommunities.org/id/metropolitan-district-council/wolverhampton","Bickford Truck Hire Limited","308943","525.00","Hire of Vehicles","190111208","01/04/15","Fleet Services","Fleet Management","R3200"
"Wolverhampton City Council","http://opendatacommunities.org/id/metropolitan-district-council/wolverhampton","Bilston Resource Centre","035","5,831.96","Grant Payments","130062589","01/04/15","Adult Education","NESS Neigh/hood Employment & Skills Serv","R4700"
"Wolverhampton City Council","http://opendatacommunities.org/id/metropolitan-district-council/wolverhampton","Bilston Resource Centre","BRC/SC/fin","6,452.80","Grant Payments","190110237","01/04/15","All Age Disability (Disabilities)","Third Sector Development","R4700"
"Wolverhampton City Council","http://opendatacommunities.org/id/metropolitan-district-council/wolverhampton","Birmingham CC - General Fund","9001683607","15.00","Training Expenses","130063315","01/04/15","Safeguarding","Head of Service Quality and Safeguarding","R1650"
"Wolverhampton City Council","http://opendatacommunities.org/id/metropolitan-district-council/wolverhampton","Black Country Partnership NHS Ft","3100000422","13,855.33","TPP - Social Care Support Services","130059214","01/04/15","Mental Health Commissioning","Child & Adolescent Mental Health Service","R5501"
"Wolverhampton City Council","http://opendatacommunities.org/id/metropolitan-district-council/wolverhampton","Black Country Partnership NHS Ft","3100000444","8,986.33","TPP - Social Care Support Services","130060929","01/04/15","Mental Health Commissioning","Child & Adolescent Mental Health Service","R5501"
"Wolverhampton City Council","http://opendatacommunities.org/id/metropolitan-district-council/wolverhampton","Black Country Partnership NHS Ft","3100000415","8,986.33","TPP - Social Care Support Services","130059213","01/04/15","Mental Health Commissioning","Child & Adolescent Mental Health Service","R5501"
"Wolverhampton City Council","http://opendatacommunities.org/id/metropolitan-district-council/wolverhampton","Black Country Partnership NHS Ft","3100000423","8,986.33","TPP - Social Care Support Services","130059215","01/04/15","Mental Health Commissioning","Child & Adolescent Mental Health Service","R5501"
"Wolverhampton City Council","http://opendatacommunities.org/id/metropolitan-district-council/wolverhampton","Black Country Touring","141552","550.00","Services - Professional Fees","130063231","01/04/15","Culture Arts & Heritage","Black Country Echoes","R4400"
"Wolverhampton City Council","http://opendatacommunities.org/id/metropolitan-district-council/wolverhampton","Blakenhall Neighbourhood Nursery","TFT Spring Final 15","10,962.50","Grant Payments","190110349","01/04/15","Childrens Centres & Early Years","2 Year Olds Pilot - Early Learning & Childcare","R4700"
"Wolverhampton City Council","http://opendatacommunities.org/id/metropolitan-district-council/wolverhampton","Blue Group Interntl Limited T/A Bluecare","HSOC5390013","5.40","Agency Staff","130062838","01/04/15","Looked After Children","Adoption Reform","R1100"
"Wolverhampton City Council","http://opendatacommunities.org/id/metropolitan-district-council/wolverhampton","Blue Group Interntl Limited T/A Bluecare","HSOC5390624","1,369.00","Agency Staff","130062840","01/04/15","Children in Need & Child Protection","CIN - Dove CC - Area 6","R1100"
"Wolverhampton City Council","http://opendatacommunities.org/id/metropolitan-district-council/wolverhampton","Blue Group Interntl Limited T/A Bluecare","HSOC5339462A","1,575.00","Agency Staff","130063346","01/04/15","Children in Need & Child Protection","CIN - Bingley CC - Area 4","R1100"
"Wolverhampton City Council","http://opendatacommunities.org/id/metropolitan-district-council/wolverhampton","Blue Group Interntl Limited T/A Bluecare","HSOC5390009","8.10","Agency Staff","130062317","01/04/15","Looked After Children","Fostering Team","R1100"
"Wolverhampton City Council","http://opendatacommunities.org/id/metropolitan-district-council/wolverhampton","Blue Group Interntl Limited T/A Bluecare","HSOC5385786","25.65","Agency Staff","130063635","01/04/15","Looked After Children","Adoption Reform","R1100"
"Wolverhampton City Council","http://opendatacommunities.org/id/metropolitan-district-council/wolverhampton","Blue Group Interntl Limited T/A Bluecare","HSOC5385789","573.50","Agency Staff","130063638","01/04/15","Looked After Children","Adoption Reform","R1100"
"Wolverhampton City Council","http://opendatacommunities.org/id/metropolitan-district-council/wolverhampton","Blue Group Interntl Limited T/A Bluecare","HSOC5381409","166.50","Agency Staff","130057173","01/04/15","Children in Need & Child Protection","CIN - Graisley MAST - Area 3","R1100"
"Wolverhampton City Council","http://opendatacommunities.org/id/metropolitan-district-council/wolverhampton","Blue Group Interntl Limited T/A Bluecare","HSOC5389614","1,369.00","Agency Staff","130062097","01/04/15","Children in Need & Child Protection","CIN - Graisley MAST - Area 3","R1100"
"Wolverhampton City Council","http://opendatacommunities.org/id/metropolitan-district-council/wolverhampton","Blue Group Interntl Limited T/A Bluecare","HSOC5381408","111.00","Agency Staff","130057172","01/04/15","Children in Need & Child Protection","CIN - Graisley MAST - Area 3","R1100"
"Wolverhampton City Council","http://opendatacommunities.org/id/metropolitan-district-council/wolverhampton","Blue Group Interntl Limited T/A Bluecare","HSOC5389613","11.70","Agency Staff","130062096","01/04/15","Children in Need & Child Protection","CIN - Graisley MAST - Area 3","R1100"
"Wolverhampton City Council","http://opendatacommunities.org/id/metropolitan-district-council/wolverhampton","Blue Group Interntl Limited T/A Bluecare","HSOC5381411","92.50","Agency Staff","130057175","01/04/15","Children in Need & Child Protection","CIN - Graisley MAST - Area 3","R1100"
"Wolverhampton City Council","http://opendatacommunities.org/id/metropolitan-district-council/wolverhampton","Blue Group Interntl Limited T/A Bluecare","HSOC5388702","104.85","Agency Staff","130061495","01/04/15","Children in Need & Child Protection","Eastfield 1 Social Work Unit - Area 1","R1100"
"Wolverhampton City Council","http://opendatacommunities.org/id/metropolitan-district-council/wolverhampton","Blue Group Interntl Limited T/A Bluecare","HSOC5387733","20.25","Agency Staff","130061192","01/04/15","Children in Need & Child Protection","CIN - Graisley MAST - Area 3","R1100"
"Wolverhampton City Council","http://opendatacommunities.org/id/metropolitan-district-council/wolverhampton","Blue Group Interntl Limited T/A Bluecare","HSOC5387734","1,369.00","Agency Staff","130061193","01/04/15","Children in Need & Child Protection","CIN - Graisley MAST - Area 3","R1100"
"Wolverhampton City Council","http://opendatacommunities.org/id/metropolitan-district-council/wolverhampton","Blue Group Interntl Limited T/A Bluecare","HSOC5387207","1,480.00","Agency Staff","130060719","01/04/15","Children in Need & Child Protection","CIN - Graisley MAST - Area 3","R1100"
"Wolverhampton City Council","http://opendatacommunities.org/id/metropolitan-district-council/wolverhampton","Blue Group Interntl Limited T/A Bluecare","HSOC5371619","1,404.50","Agency Staff","130050357","01/04/15","Children in Need & Child Protection","CIN - Graisley MAST - Area 3","R1100"
"Wolverhampton City Council","http://opendatacommunities.org/id/metropolitan-district-council/wolverhampton","Blue Group Interntl Limited T/A Bluecare","HSOC5391890","1,332.00","Agency Staff","130064208","01/04/15","Children in Need & Child Protection","North East Locality Service","R1100"
"Wolverhampton City Council","http://opendatacommunities.org/id/metropolitan-district-council/wolverhampton","Blue Group Interntl Limited T/A Bluecare","HSOC5391504","17.55","Agency Staff","130064207","01/04/15","Looked After Children","Adoption Reform","R1100"
"Wolverhampton City Council","http://opendatacommunities.org/id/metropolitan-district-council/wolverhampton","Blue Group Interntl Limited T/A Bluecare","HSOC5388703","1,184.00","Agency Staff","130061496","01/04/15","Children in Need & Child Protection","Eastfield 1 Social Work Unit - Area 1","R1100"
"Wolverhampton City Council","http://opendatacommunities.org/id/metropolitan-district-council/wolverhampton","Blue Group Interntl Limited T/A Bluecare","HSOC5391503","573.50","Agency Staff","130064206","01/04/15","Looked After Children","Adoption Reform","R1100"
"Wolverhampton City Council","http://opendatacommunities.org/id/metropolitan-district-council/wolverhampton","Blue Group Interntl Limited T/A Bluecare","HSOC5391500","1,263.18","Agency Staff","130064203","01/04/15","Older People Assessment & Care Management","Assessment Team (East)","R1100"
"Wolverhampton City Council","http://opendatacommunities.org/id/metropolitan-district-council/wolverhampton","Blue Group Interntl Limited T/A Bluecare","HSOC5387731","1,110.00","Agency Staff","130061190","01/04/15","Looked After Children","Fostering Team","R1100"
"Wolverhampton City Council","http://opendatacommunities.org/id/metropolitan-district-council/wolverhampton","Blue Group Interntl Limited T/A Bluecare","HSOC5387732","6.30","Agency Staff","130061191","01/04/15","Looked After Children","Fostering Team","R1100"
"Wolverhampton City Council","http://opendatacommunities.org/id/metropolitan-district-council/wolverhampton","Blue Group Interntl Limited T/A Bluecare","HSOC5371618","800.00","Agency Staff","130050356","01/04/15","Children in Need & Child Protection","CIN - Graisley MAST - Area 3","R1100"
"Wolverhampton City Council","http://opendatacommunities.org/id/metropolitan-district-council/wolverhampton","Blue Group Interntl Limited T/A Bluecare","HSOC5381416","555.00","Agency Staff","130057180","01/04/15","Children in Need & Child Protection","CIN - Graisley MAST - Area 3","R1100"
"Wolverhampton City Council","http://opendatacommunities.org/id/metropolitan-district-council/wolverhampton","Blue Group Interntl Limited T/A Bluecare","HSOC5381417","45.00","Agency Staff","130057181","01/04/15","Children in Need & Child Protection","CIN - Graisley MAST - Area 3","R1100"
"Wolverhampton City Council","http://opendatacommunities.org/id/metropolitan-district-council/wolverhampton","Blue Group Interntl Limited T/A Bluecare","HSOC5381983","351.50","Agency Staff","130057714","01/04/15","Children in Need & Child Protection","CIN - Graisley MAST - Area 3","R1100"
"Wolverhampton City Council","http://opendatacommunities.org/id/metropolitan-district-council/wolverhampton","Blue Group Interntl Limited T/A Bluecare","HSOC5372230","16.65","Agency Staff","130050822","01/04/15","Children in Need & Child Protection","CIN - Graisley MAST - Area 3","R1100"
"Wolverhampton City Council","http://opendatacommunities.org/id/metropolitan-district-council/wolverhampton","Blue Group Interntl Limited T/A Bluecare","HSOC5390625","1,482.70","Agency Staff","130062841","01/04/15","Children in Need & Child Protection","CIN - Graisley MAST - Area 3","R1100"
"Wolverhampton City Council","http://opendatacommunities.org/id/metropolitan-district-council/wolverhampton","Blue Group Interntl Limited T/A Bluecare","HSOC5384758","1,482.70","Agency Staff","130059307","01/04/15","Children in Need & Child Protection","CIN - Graisley MAST - Area 3","R1100"
"Wolverhampton City Council","http://opendatacommunities.org/id/metropolitan-district-council/wolverhampton","Blue Group Interntl Limited T/A Bluecare","HSOC5377538","1,480.00","Agency Staff","130054292","01/04/15","Children in Need & Child Protection","CIN - Graisley MAST - Area 3","R1100"
"Wolverhampton City Council","http://opendatacommunities.org/id/metropolitan-district-council/wolverhampton","Blue Group Interntl Limited T/A Bluecare","HSOC5379203","1,480.00","Agency Staff","130055217","01/04/15","Children in Need & Child Protection","CIN - Graisley MAST - Area 3","R1100"
"Wolverhampton City Council","http://opendatacommunities.org/id/metropolitan-district-council/wolverhampton","Blue Group Interntl Limited T/A Bluecare","HSOC5381017","1,484.50","Agency Staff","130056212","01/04/15","Children in Need & Child Protection","CIN - Graisley MAST - Area 3","R1100"
"Wolverhampton City Council","http://opendatacommunities.org/id/metropolitan-district-council/wolverhampton","Blue Group Interntl Limited T/A Bluecare","HSOC5381412","555.00","Agency Staff","130057176","01/04/15","Children in Need & Child Protection","CIN - Graisley MAST - Area 3","R1100"
"Wolverhampton City Council","http://opendatacommunities.org/id/metropolitan-district-council/wolverhampton","Blue Group Interntl Limited T/A Bluecare","HSOC5381414","444.00","Agency Staff","130057178","01/04/15","Children in Need & Child Protection","CIN - Graisley MAST - Area 3","R1100"
"Wolverhampton City Council","http://opendatacommunities.org/id/metropolitan-district-council/wolverhampton","Blue Group Interntl Limited T/A Bluecare","HSOC5388704","1,480.00","Agency Staff","130061497","01/04/15","Children in Need & Child Protection","CIN - Graisley MAST - Area 3","R1100"
"Wolverhampton City Council","http://opendatacommunities.org/id/metropolitan-district-council/wolverhampton","Blue Group Interntl Limited T/A Bluecare","HSOC5381413","16.65","Agency Staff","130057177","01/04/15","Children in Need & Child Protection","CIN - Graisley MAST - Area 3","R1100"
"Wolverhampton City Council","http://opendatacommunities.org/id/metropolitan-district-council/wolverhampton","Blue Group Interntl Limited T/A Bluecare","HSOC5381415","22.50","Agency Staff","130057179","01/04/15","Children in Need & Child Protection","CIN - Graisley MAST - Area 3","R1100"
"Wolverhampton City Council","http://opendatacommunities.org/id/metropolitan-district-council/wolverhampton","Blue Group Interntl Limited T/A Bluecare","HSOC5381985","1,369.00","Agency Staff","130057716","01/04/15","Children in Need & Child Protection","CIN - Graisley MAST - Area 3","R1100"
"Wolverhampton City Council","http://opendatacommunities.org/id/metropolitan-district-council/wolverhampton","Blue Group Interntl Limited T/A Bluecare","HSOC5382336","10.35","Agency Staff","130057901","01/04/15","Children in Need & Child Protection","CIN - Graisley MAST - Area 3","R1100"
"Wolverhampton City Council","http://opendatacommunities.org/id/metropolitan-district-council/wolverhampton","Blue Group Interntl Limited T/A Bluecare","HSOC5383293","1,480.00","Agency Staff","130059102","01/04/15","Children in Need & Child Protection","CIN - Graisley MAST - Area 3","R1100"
"Wolverhampton City Council","http://opendatacommunities.org/id/metropolitan-district-council/wolverhampton","Blue Group Interntl Limited T/A Bluecare","HSOC5385787","1,369.00","Agency Staff","130063636","01/04/15","Children in Need & Child Protection","CIN - Dove CC - Area 6","R1100"
"Wolverhampton City Council","http://opendatacommunities.org/id/metropolitan-district-council/wolverhampton","Blue Group Interntl Limited T/A Bluecare","HSOC5382333","1,332.00","Agency Staff","130057898","01/04/15","Children in Need & Child Protection","North East Locality Service","R1100"
"Wolverhampton City Council","http://opendatacommunities.org/id/metropolitan-district-council/wolverhampton","Blue Mountain Foods Limited","6260","38.00","Provisions (Resale)","130063062","01/04/15","Catering","Education Catering - General Overheads","R4102"
"Wolverhampton City Council","http://opendatacommunities.org/id/metropolitan-district-council/wolverhampton","Boc Limited","3028728259","121.25","Equipment - Purchase","130064123","01/04/15","Visitor Economy","Catering Overhead Account","R4000"
"Wolverhampton City Council","http://opendatacommunities.org/id/metropolitan-district-council/wolverhampton","Bottomline Technologies Europe Limited","INV444553","440.00","Computing - Purchase of Software","130063965","01/04/15","The Hub","Quality and Improvement","R4531"
"Wolverhampton City Council","http://opendatacommunities.org/id/metropolitan-district-council/wolverhampton","Bourne Leisure Limited","29th Jan 2015","6,292.13","TPP - Short Breaks","130063796","01/04/15","Short Breaks Commissioning","Short Breaks","R5500"
"Wolverhampton City Council","http://opendatacommunities.org/id/metropolitan-district-council/wolverhampton","Bradley Environmental Consultant Limited","84658","400.00","Training Expenses","130062485","01/04/15","Audit Services","Site Management Health & Safety","R1650"
"Wolverhampton City Council","http://opendatacommunities.org/id/metropolitan-district-council/wolverhampton","Bradley Environmental Consultant Limited","84658","-400.00","Training Expenses","130062485","01/04/15","Audit Services","Site Management Health & Safety","R1650"
"Wolverhampton City Council","http://opendatacommunities.org/id/metropolitan-district-council/wolverhampton","Bradley Environmental Consultant Limited","84658","400.00","Training Expenses","130062485","01/04/15","Audit Services","Site Management Health & Safety","R1650"
"Wolverhampton City Council","http://opendatacommunities.org/id/metropolitan-district-council/wolverhampton","Braitch Solicitors","16278","297.00","Services - Professional Fees","130051351","01/04/15","Looked After Children","Looked After Team 1","R4400"
"Wolverhampton City Council","http://opendatacommunities.org/id/metropolitan-district-council/wolverhampton","Bridge Security Vehicle Tracking Limited","42042","290.00","Vehicle Maintenance - Spare Parts","130064141","01/04/15","Environmental Maintenance","Ground Maintenance East","R3009"
"Wolverhampton City Council","http://opendatacommunities.org/id/metropolitan-district-council/wolverhampton","Bristow & Sutor","149475","218.79","Services - Professional Fees","130063233","01/04/15","Revenues & Benefits","Revenues","R4400"
"Wolverhampton City Council","http://opendatacommunities.org/id/metropolitan-district-council/wolverhampton","Bristow & Sutor","149660","1,667.54","Services - Professional Fees","130063234","01/04/15","Revenues & Benefits","Revenues","R4400"
"Wolverhampton City Council","http://opendatacommunities.org/id/metropolitan-district-council/wolverhampton","British Gas Trading Limited","BG0008-850007819162","759.73","Electricity","190110769","01/04/15","Housing Revenue Account","Hostels / Outreach","R2100"
"Wolverhampton City Council","http://opendatacommunities.org/id/metropolitan-district-council/wolverhampton","British Gas Trading Limited","BG0009-850045409702","115.74","Electricity","190110770","01/04/15","Housing Revenue Account","Hostels / Outreach","R2100"
"Wolverhampton City Council","http://opendatacommunities.org/id/metropolitan-district-council/wolverhampton","British Gas Trading Limited","BG0010-850026413410","44.48","Electricity","190110771","01/04/15","Housing Revenue Account","Hostels / Outreach","R2100"
"Wolverhampton City Council","http://opendatacommunities.org/id/metropolitan-district-council/wolverhampton","BT (Phone Bills)","CM 5937 1307 Q103 DQ","98.28","Comms - Telephone Rental","130056223","01/04/15","ICTS","Commercial Management","R4504"
"Wolverhampton City Council","http://opendatacommunities.org/id/metropolitan-district-council/wolverhampton","BT (Phone Bills)","CM 5937 1307 Q103 DQ","-98.28","Comms - Telephone Rental","130056223","01/04/15","ICTS","Commercial Management","R4504"
"Wolverhampton City Council","http://opendatacommunities.org/id/metropolitan-district-council/wolverhampton","BT (Phone Bills)","CM 5937 1307 Q103 DQ","84.78","Comms - Telephone Rental","130056223","01/04/15","ICTS","Commercial Management","R4504"
"Wolverhampton City Council","http://opendatacommunities.org/id/metropolitan-district-council/wolverhampton","BT (Phone Bills)","CM 5937 1307 Q103 DQ","13.50","Comms - Telephone Rental","130056223","01/04/15","ICTS","Commercial Management","R4504"
"Wolverhampton City Council","http://opendatacommunities.org/id/metropolitan-district-council/wolverhampton","BT (Phone Bills)","CM 5937 1307 Q102 98","103.28","Comms - Telephone Rental","130056222","01/04/15","ICTS","Commercial Management","R4504"
"Wolverhampton City Council","http://opendatacommunities.org/id/metropolitan-district-council/wolverhampton","BT (Phone Bills)","CM 5937 1307 Q102 98","-103.28","Comms - Telephone Rental","130056222","01/04/15","ICTS","Commercial Management","R4504"
"Wolverhampton City Council","http://opendatacommunities.org/id/metropolitan-district-council/wolverhampton","BT (Phone Bills)","CM 5937 1307 Q102 98","89.78","Comms - Telephone Rental","130056222","01/04/15","ICTS","Commercial Management","R4504"
"Wolverhampton City Council","http://opendatacommunities.org/id/metropolitan-district-council/wolverhampton","BT (Phone Bills)","CM 5937 1307 Q102 98","13.50","Comms - Telephone Rental","130056222","01/04/15","ICTS","Commercial Management","R4504"
"Wolverhampton City Council","http://opendatacommunities.org/id/metropolitan-district-council/wolverhampton","BT (Phone Bills)","CM 5949 0552 Q102 NN","106.79","Fixtures and Fittings - R&M","130061846","01/04/15","Community Centres (Corporate Landlord)","All Saints Community Centre","R2502"
"Wolverhampton City Council","http://opendatacommunities.org/id/metropolitan-district-council/wolverhampton","BT (Phone Bills)","CM 5949 0552 Q102 NN","20.00","Fixtures and Fittings - R&M","130061846","01/04/15","Community Centres (Corporate Landlord)","All Saints Community Centre","R2502"
"Wolverhampton City Council","http://opendatacommunities.org/id/metropolitan-district-council/wolverhampton","BT (Phone Bills)","CM 5902 0054 Q105 DX","91.97","Services - Security","130063338","01/04/15","Library Services","Low Hill Library","R4405"
"Wolverhampton City Council","http://opendatacommunities.org/id/metropolitan-district-council/wolverhampton","BT (Phone Bills)","CM 5902 0054 Q105 DX","-91.97","Services - Security","130063338","01/04/15","Library Services","Low Hill Library","R4405"
"Wolverhampton City Council","http://opendatacommunities.org/id/metropolitan-district-council/wolverhampton","BT (Phone Bills)","CM 5902 0054 Q105 DX","71.97","Services - Security","130063338","01/04/15","Library Services","Low Hill Library","R4405"
"Wolverhampton City Council","http://opendatacommunities.org/id/metropolitan-district-council/wolverhampton","BT (Phone Bills)","CM 5902 0054 Q105 DX","20.00","Services - Security","130063338","01/04/15","Library Services","Low Hill Library","R4405"
"Wolverhampton City Council","http://opendatacommunities.org/id/metropolitan-district-council/wolverhampton","BT (Phone Bills)","CM 6219 5523 Q060 R8","91.97","Services - Security","130063339","01/04/15","Library Services","East Park Library (Prev Eastfield LP EA)","R4405"
"Wolverhampton City Council","http://opendatacommunities.org/id/metropolitan-district-council/wolverhampton","BT (Phone Bills)","CM 6219 5523 Q060 R8","-91.97","Services - Security","130063339","01/04/15","Library Services","East Park Library (Prev Eastfield LP EA)","R4405"
"Wolverhampton City Council","http://opendatacommunities.org/id/metropolitan-district-council/wolverhampton","BT (Phone Bills)","CM 6219 5523 Q060 R8","71.97","Services - Security","130063339","01/04/15","Library Services","East Park Library (Prev Eastfield LP EA)","R4405"
"Wolverhampton City Council","http://opendatacommunities.org/id/metropolitan-district-council/wolverhampton","BT (Phone Bills)","CM 6219 5523 Q060 R8","20.00","Services - Security","130063339","01/04/15","Library Services","East Park Library (Prev Eastfield LP EA)","R4405"
"Wolverhampton City Council","http://opendatacommunities.org/id/metropolitan-district-council/wolverhampton","BT Phone Book Advertising","A134698","3,385.50","Construction and Conversion","130063617","01/04/15","","Integrated Transport","C1100"
"Wolverhampton City Council","http://opendatacommunities.org/id/metropolitan-district-council/wolverhampton","British Youth Council","M201516171","400.00","Subscriptions","130063384","01/04/15","Youth Services","Youth Service - Participation Team","R4701"
"Wolverhampton City Council","http://opendatacommunities.org/id/metropolitan-district-council/wolverhampton","BT (Business)","IN02598891","260.34","Computing - Purchase of Hardware","130055016","01/04/15","School Planning & Resources","Learning Technologies","R4530"
"Wolverhampton City Council","http://opendatacommunities.org/id/metropolitan-district-council/wolverhampton","BT (Business)","IN02292411","870.00","Computing - Purchase of Hardware","130058250","01/04/15","School Planning & Resources","Technical Support","R4530"
"Wolverhampton City Council","http://opendatacommunities.org/id/metropolitan-district-council/wolverhampton","BT (Business)","IN02292411","8.00","Computing - Purchase of Hardware","130058250","01/04/15","School Planning & Resources","Technical Support","R4530"
"Wolverhampton City Council","http://opendatacommunities.org/id/metropolitan-district-council/wolverhampton","BT (Business)","IN02599548","54.49","Computing - Purchase of Hardware","130055018","01/04/15","School Planning & Resources","Learning Technologies","R4530"
"Wolverhampton City Council","http://opendatacommunities.org/id/metropolitan-district-council/wolverhampton","BT (Business)","IN02599548","7.00","Comms - Postage","130055018","01/04/15","School Planning & Resources","Learning Technologies","R4503"
"Wolverhampton City Council","http://opendatacommunities.org/id/metropolitan-district-council/wolverhampton","BT Global","382104","453.50","Construction and Conversion","130064137","01/04/15","","Integrated Transport","C1100"
"Wolverhampton City Council","http://opendatacommunities.org/id/metropolitan-district-council/wolverhampton","BT Global","381849","51,048.32","Equipment - Hire","130063810","01/04/15","Operation & Maintenance of Existing Network","UTC Wolverhampton","R4001"
"Wolverhampton City Council","http://opendatacommunities.org/id/metropolitan-district-council/wolverhampton","BT Global","381877","14,659.71","TPP - Rechargeable Works Costs","130063812","01/04/15","Operation & Maintenance of Existing Network","UTC only � External Rechargeable Works","R5730"
"Wolverhampton City Council","http://opendatacommunities.org/id/metropolitan-district-council/wolverhampton","BT Global","382104","9,264.40","Construction and Conversion","130064137","01/04/15","","Integrated Transport","C1100"
"Wolverhampton City Council","http://opendatacommunities.org/id/metropolitan-district-council/wolverhampton","BT Global","382104","8,357.39","Construction and Conversion","130064137","01/04/15","","Raglan Street - Sainsburys S278 works","C1100"
"Wolverhampton City Council","http://opendatacommunities.org/id/metropolitan-district-council/wolverhampton","BT Global","382104","46,710.71","Construction and Conversion","130064137","01/04/15","","Integrated Transport","C1100"
"Wolverhampton City Council","http://opendatacommunities.org/id/metropolitan-district-council/wolverhampton","BT Global","381985","9,155.58","Equipment - Hire","130064136","01/04/15","Operation & Maintenance of Existing Network","UTC Wolverhampton","R4001"
"Wolverhampton City Council","http://opendatacommunities.org/id/metropolitan-district-council/wolverhampton","BT Global","381807","12,149.87","Equipment - Hire","130064495","01/04/15","Operation & Maintenance of Existing Network","UTC Wolverhampton","R4001"
"Wolverhampton City Council","http://opendatacommunities.org/id/metropolitan-district-council/wolverhampton","BT Global","381673","20,040.90","Grants paid out","130063566","01/04/15","","West Midlands UTC","C5000"
"Wolverhampton City Council","http://opendatacommunities.org/id/metropolitan-district-council/wolverhampton","BT Global","381673","8,196.41","Grants paid out","130063566","01/04/15","","West Midlands UTC","C5000"
"Wolverhampton City Council","http://opendatacommunities.org/id/metropolitan-district-council/wolverhampton","BT Global","381673","6,013.45","Grants paid out","130063566","01/04/15","","West Midlands UTC","C5000"
"Wolverhampton City Council","http://opendatacommunities.org/id/metropolitan-district-council/wolverhampton","BT Global","381673","3,642.20","Grants paid out","130063566","01/04/15","","West Midlands UTC","C5000"
"Wolverhampton City Council","http://opendatacommunities.org/id/metropolitan-district-council/wolverhampton","BT Global","381673","2,730.18","Grants paid out","130063566","01/04/15","","West Midlands UTC","C5000"
"Wolverhampton City Council","http://opendatacommunities.org/id/metropolitan-district-council/wolverhampton","BT Global","381673","4,554.22","Grants paid out","130063566","01/04/15","","West Midlands UTC","C5000"
"Wolverhampton City Council","http://opendatacommunities.org/id/metropolitan-district-council/wolverhampton","BT Global","381673","13,662.65","Grants paid out","130063566","01/04/15","","West Midlands UTC","C5000"
"Wolverhampton City Council","http://opendatacommunities.org/id/metropolitan-district-council/wolverhampton","Buffets 2 Go","7665","937.50","Catering","130064168","01/04/15","Looked After Children","LAC Education Team (LACE)","R4100"
"Wolverhampton City Council","http://opendatacommunities.org/id/metropolitan-district-council/wolverhampton","Burdens Limited","18619601","125.40","Materials","130062441","01/04/15","Street Lighting","Street Lighting Maintenance","R4007"
"Wolverhampton City Council","http://opendatacommunities.org/id/metropolitan-district-council/wolverhampton","Burdens Limited","12827650","-78.08","TPP - Maintenance on Other Roads","130062907","01/04/15","Highways Maintenance","Highway & Land Drainage","R5710"
"Wolverhampton City Council","http://opendatacommunities.org/id/metropolitan-district-council/wolverhampton","Burdens Limited","18619602","26.75","TPP - Maintenance on Other Roads","130062909","01/04/15","Highways Maintenance","Highway & Land Drainage","R5710"
"Wolverhampton City Council","http://opendatacommunities.org/id/metropolitan-district-council/wolverhampton","Burnt Tree Group Limited","XCC13004460","1,040.00","Hire of Vehicles","190111071","01/04/15","Fleet Services","Fleet Management","R3200"
"Wolverhampton City Council","http://opendatacommunities.org/id/metropolitan-district-council/wolverhampton","Burnt Tree Group Limited","XCC13013005","1,100.00","Hire of Vehicles","190111072","01/04/15","Fleet Services","Fleet Management","R3200"
"Wolverhampton City Council","http://opendatacommunities.org/id/metropolitan-district-council/wolverhampton","Burnt Tree Group Limited","XCC13013006","1,100.00","Hire of Vehicles","190111073","01/04/15","Fleet Services","Fleet Management","R3200"
"Wolverhampton City Council","http://opendatacommunities.org/id/metropolitan-district-council/wolverhampton","Bushbury Triangle Neighbour.Nursery","TFT Spring Final 15","20,407.50","Grant Payments","190110349","01/04/15","Childrens Centres & Early Years","2 Year Olds Pilot - Early Learning & Childcare","R4700"
"Wolverhampton City Council","http://opendatacommunities.org/id/metropolitan-district-council/wolverhampton","Butterflies Play Hut","TFT Final Spring 15","6,547.50","Grant Payments","190110347","01/04/15","Childrens Centres & Early Years","2 Year Olds Pilot - Early Learning & Childcare","R4700"
"Wolverhampton City Council","http://opendatacommunities.org/id/metropolitan-district-council/wolverhampton","Butterflies Play Hut","NEF Spring Final 2015","1,749.40","TPP - Private Nursery Education Funding","190109790","01/04/15","Childrens Centres & Early Years","Early Years Non Maintained Schools","R5035"
"Wolverhampton City Council","http://opendatacommunities.org/id/metropolitan-district-council/wolverhampton","Bytes Software Services Limited","408550","22,947.10","Intangible Assets / Computer Software","130062741","01/04/15","","ICT General Programme","C4005"
"Wolverhampton City Council","http://opendatacommunities.org/id/metropolitan-district-council/wolverhampton","Bytes Software Services Limited","409086","4,565.00","Services - General Licences","130063817","01/04/15","ICTS","Strategic ICTS (ICT Service Budget)","R4402"
"Wolverhampton City Council","http://opendatacommunities.org/id/metropolitan-district-council/wolverhampton","C.Y.Electrical & Cranes Co Limited","085112","85.40","R&M - Departmental planned (external)","130063712","01/04/15","Bereavement Services","Crematorium","R2001"
"Wolverhampton City Council","http://opendatacommunities.org/id/metropolitan-district-council/wolverhampton","Cale Briparc Limited","102263","21.50","Equipment - R & M","130063467","01/04/15","Parking Services","On Street Parking","R4003"
"Wolverhampton City Council","http://opendatacommunities.org/id/metropolitan-district-council/wolverhampton","Canal & River Trust","90811378","50,590.00","Construction and Conversion","130063888","01/04/15","","Local Sustainable Transport Fund","C1100"
"Wolverhampton City Council","http://opendatacommunities.org/id/metropolitan-district-council/wolverhampton","Canal & River Trust","90811378","-50,590.00","Construction and Conversion","130063888","01/04/15","","Local Sustainable Transport Fund","C1100"
"Wolverhampton City Council","http://opendatacommunities.org/id/metropolitan-district-council/wolverhampton","Canal & River Trust","90811378","50,590.00","Construction and Conversion","130063888","01/04/15","","Local Sustainable Transport Fund","C1100"
"Wolverhampton City Council","http://opendatacommunities.org/id/metropolitan-district-council/wolverhampton","Capita Resourcing Limited","01485202","1,192.88","Agency Staff","130063168","01/04/15","Looked After Children","Adoption and Residence Team & Allowances","R1100"
"Wolverhampton City Council","http://opendatacommunities.org/id/metropolitan-district-council/wolverhampton","Capita Resourcing Limited","01468760","1,156.25","Agency Staff","130034812","01/04/15","Looked After Children","Adoption and Residence Team & Allowances","R1100"
"Wolverhampton City Council","http://opendatacommunities.org/id/metropolitan-district-council/wolverhampton","Capita Resourcing Limited","01470790","1,156.25","Agency Staff","130038527","01/04/15","Looked After Children","Adoption and Residence Team & Allowances","R1100"
"Wolverhampton City Council","http://opendatacommunities.org/id/metropolitan-district-council/wolverhampton","Capita Resourcing Limited","01470089","968.75","Agency Staff","130037095","01/04/15","Looked After Children","Adoption and Residence Team & Allowances","R1100"
"Wolverhampton City Council","http://opendatacommunities.org/id/metropolitan-district-council/wolverhampton","Capita Resourcing Limited","01468131","1,156.25","Agency Staff","130033449","01/04/15","Looked After Children","Adoption and Residence Team & Allowances","R1100"
"Wolverhampton City Council","http://opendatacommunities.org/id/metropolitan-district-council/wolverhampton","Capita Resourcing Limited","WN4019896","2,000.00","Agency Staff","130064244","01/04/15","Estates and Valuations","Disposal Costs","R1100"
"Wolverhampton City Council","http://opendatacommunities.org/id/metropolitan-district-council/wolverhampton","Capita Resourcing Limited","01485911","12.60","Agency Staff","130064308","01/04/15","Older People Assessment & Care Management","Assessment Team (East)","R1100"
"Wolverhampton City Council","http://opendatacommunities.org/id/metropolitan-district-council/wolverhampton","Capita Resourcing Limited","01485909","9.90","Agency Staff","130064306","01/04/15","Older People Assessment & Care Management","Assessment Team (East)","R1100"
"Wolverhampton City Council","http://opendatacommunities.org/id/metropolitan-district-council/wolverhampton","Capita Resourcing Limited","01485907","1,125.91","Agency Staff","130064305","01/04/15","Older People Assessment & Care Management","Assessment Team (East)","R1100"
"Wolverhampton City Council","http://opendatacommunities.org/id/metropolitan-district-council/wolverhampton","Capita Resourcing Limited","01478673","290.25","Agency Staff","130052333","01/04/15","Children in Need & Child Protection","CIN - Graisley MAST - Area 3","R1100"
"Wolverhampton City Council","http://opendatacommunities.org/id/metropolitan-district-council/wolverhampton","Capita Resourcing Limited","01478674","806.25","Agency Staff","130052334","01/04/15","Children in Need & Child Protection","CIN - Graisley MAST - Area 3","R1100"
"Wolverhampton City Council","http://opendatacommunities.org/id/metropolitan-district-council/wolverhampton","Capita Resourcing Limited","01478675","516.00","Agency Staff","130052335","01/04/15","Children in Need & Child Protection","CIN - Graisley MAST - Area 3","R1100"
"Wolverhampton City Council","http://opendatacommunities.org/id/metropolitan-district-council/wolverhampton","Capita Resourcing Limited","01478676","378.94","Agency Staff","130052336","01/04/15","Children in Need & Child Protection","CIN - Graisley MAST - Area 3","R1100"
"Wolverhampton City Council","http://opendatacommunities.org/id/metropolitan-district-council/wolverhampton","Capita Resourcing Limited","01464016","731.50","Agency Staff","130026336","01/04/15","Looked After Children","Fostering Team","R1100"
"Wolverhampton City Council","http://opendatacommunities.org/id/metropolitan-district-council/wolverhampton","Capita Resourcing Limited","01480000","131.40","Agency Staff","130055096","01/04/15","Looked After Children","Adoption Team","R1100"
"Wolverhampton City Council","http://opendatacommunities.org/id/metropolitan-district-council/wolverhampton","Capita Resourcing Limited","01479999","112.50","Agency Staff","130055095","01/04/15","Looked After Children","Adoption Team","R1100"
"Wolverhampton City Council","http://opendatacommunities.org/id/metropolitan-district-council/wolverhampton","Capita Resourcing Limited","01480004","117.00","Agency Staff","130055100","01/04/15","Looked After Children","Adoption Team","R1100"
"Wolverhampton City Council","http://opendatacommunities.org/id/metropolitan-district-council/wolverhampton","Capita Resourcing Limited","01479998","115.20","Agency Staff","130055094","01/04/15","Looked After Children","Adoption Team","R1100"
"Wolverhampton City Council","http://opendatacommunities.org/id/metropolitan-district-council/wolverhampton","Capita Resourcing Limited","01480005","66.60","Agency Staff","130055101","01/04/15","Looked After Children","Adoption Team","R1100"
"Wolverhampton City Council","http://opendatacommunities.org/id/metropolitan-district-council/wolverhampton","Capita Resourcing Limited","01479995","135.63","Agency Staff","130055093","01/04/15","Looked After Children","Adoption Team","R1100"
"Wolverhampton City Council","http://opendatacommunities.org/id/metropolitan-district-council/wolverhampton","Capita Resourcing Limited","01480001","70.65","Agency Staff","130055097","01/04/15","Looked After Children","Adoption Team","R1100"
"Wolverhampton City Council","http://opendatacommunities.org/id/metropolitan-district-council/wolverhampton","Capita Resourcing Limited","01480002","131.40","Agency Staff","130055098","01/04/15","Looked After Children","Adoption Team","R1100"
"Wolverhampton City Council","http://opendatacommunities.org/id/metropolitan-district-council/wolverhampton","Capita Resourcing Limited","01480003","117.00","Agency Staff","130055099","01/04/15","Looked After Children","Adoption Team","R1100"
"Wolverhampton City Council","http://opendatacommunities.org/id/metropolitan-district-council/wolverhampton","Capita Resourcing Limited","01485221","5.40","Agency Staff","130063187","01/04/15","Older People Assessment & Care Management","Hospital Team","R1100"
"Wolverhampton City Council","http://opendatacommunities.org/id/metropolitan-district-council/wolverhampton","Capita Resourcing Limited","01485222","9.45","Agency Staff","130063188","01/04/15","Older People Assessment & Care Management","Hospital Team","R1100"
"Wolverhampton City Council","http://opendatacommunities.org/id/metropolitan-district-council/wolverhampton","Capita Resourcing Limited","01485219","1,087.06","Agency Staff","130063185","01/04/15","Older People Assessment & Care Management","Hospital Team","R1100"
"Wolverhampton City Council","http://opendatacommunities.org/id/metropolitan-district-council/wolverhampton","Capita Resourcing Limited","01484568","1,098.75","Agency Staff","130061943","01/04/15","Older People Assessment & Care Management","Hospital Team","R1100"
"Wolverhampton City Council","http://opendatacommunities.org/id/metropolitan-district-council/wolverhampton","Capita Resourcing Limited","01483189","782.89","Agency Staff","130059597","01/04/15","Older People Assessment & Care Management","Hospital Team","R1100"
"Wolverhampton City Council","http://opendatacommunities.org/id/metropolitan-district-council/wolverhampton","Capita Resourcing Limited","01483886","1,164.80","Agency Staff","130060826","01/04/15","Older People Assessment & Care Management","Hospital Team","R1100"
"Wolverhampton City Council","http://opendatacommunities.org/id/metropolitan-district-council/wolverhampton","Capita Resourcing Limited","01481481","1,172.00","Agency Staff","130057790","01/04/15","Older People Assessment & Care Management","Hospital Team","R1100"
"Wolverhampton City Council","http://opendatacommunities.org/id/metropolitan-district-council/wolverhampton","Capita Resourcing Limited","01485220","1,125.91","Agency Staff","130063186","01/04/15","Older People Assessment & Care Management","Assessment Team (East)","R1100"
"Wolverhampton City Council","http://opendatacommunities.org/id/metropolitan-district-council/wolverhampton","Capita Resourcing Limited","01485199","1,230.32","Agency Staff","130063165","01/04/15","Looked After Children","Adoption and Residence Team & Allowances","R1100"
"Wolverhampton City Council","http://opendatacommunities.org/id/metropolitan-district-council/wolverhampton","Capita Resourcing Limited","WN4019801","2,000.00","Agency Staff","130062890","01/04/15","Estates and Valuations","Disposal Costs","R1100"
"Wolverhampton City Council","http://opendatacommunities.org/id/metropolitan-district-council/wolverhampton","Capita Resourcing Limited","01485212","1,341.25","Agency Staff","130063178","01/04/15","Looked After Children","Fostering Team","R1100"
"Wolverhampton City Council","http://opendatacommunities.org/id/metropolitan-district-council/wolverhampton","Capita Resourcing Limited","01485200","1,156.25","Agency Staff","130063166","01/04/15","Looked After Children","Adoption and Residence Team & Allowances","R1100"
"Wolverhampton City Council","http://opendatacommunities.org/id/metropolitan-district-council/wolverhampton","Capita Resourcing Limited","01485213","1,251.65","Agency Staff","130063179","01/04/15","Looked After Children","Adoption and Residence Team & Allowances","R1100"
"Wolverhampton City Council","http://opendatacommunities.org/id/metropolitan-district-council/wolverhampton","Capita Resourcing Limited","01485207","1,415.25","Agency Staff","130063173","01/04/15","Children in Need & Child Protection","CIN - Priory Green MAST - Area 6","R1100"
"Wolverhampton City Council","http://opendatacommunities.org/id/metropolitan-district-council/wolverhampton","Capita Resourcing Limited","WN4018907","2,245.50","Agency Staff","130057222","01/04/15","Estates and Valuations","Disposal Costs","R1100"
"Wolverhampton City Council","http://opendatacommunities.org/id/metropolitan-district-council/wolverhampton","Capita Resourcing Limited","WN4019278","2,500.00","Agency Staff","130057223","01/04/15","Estates and Valuations","Disposal Costs","R1100"
"Wolverhampton City Council","http://opendatacommunities.org/id/metropolitan-district-council/wolverhampton","Capita Resourcing Limited","WN4019513","2,500.00","Agency Staff","130060771","01/04/15","Estates and Valuations","Disposal Costs","R1100"
"Wolverhampton City Council","http://opendatacommunities.org/id/metropolitan-district-council/wolverhampton","Capita Resourcing Limited","WN4019700","3,500.00","Agency Staff","130061698","01/04/15","Estates and Valuations","Disposal Costs","R1100"
"Wolverhampton City Council","http://opendatacommunities.org/id/metropolitan-district-council/wolverhampton","Capita Resourcing Limited","01485205","1,392.38","Agency Staff","130063171","01/04/15","Learning Disability Assessment & Care Management","Learning Disabilities Assessment and Care Management","R1100"
"Wolverhampton City Council","http://opendatacommunities.org/id/metropolitan-district-council/wolverhampton","Capita Resourcing Limited","01485211","1,462.90","Agency Staff","130063177","01/04/15","Looked After Children","Looked After Team 1","R1100"
"Wolverhampton City Council","http://opendatacommunities.org/id/metropolitan-district-council/wolverhampton","Capita Resourcing Limited","01484565","621.27","Agency Staff","130063160","01/04/15","Learning Disability Provider","Duke Street Bungalows","R1100"
"Wolverhampton City Council","http://opendatacommunities.org/id/metropolitan-district-council/wolverhampton","Capita Resourcing Limited","01485204","1,128.75","Agency Staff","130063170","01/04/15","Physical Disabilities Assessment","Physical & Sensory Disabilities Management","R1100"
"Wolverhampton City Council","http://opendatacommunities.org/id/metropolitan-district-council/wolverhampton","Capita Resourcing Limited","01485201","1,232.10","Agency Staff","130063167","01/04/15","Looked After Children","Looked After Team 1","R1100"
"Wolverhampton City Council","http://opendatacommunities.org/id/metropolitan-district-council/wolverhampton","Capita Resourcing Limited","01485198","1,337.60","Agency Staff","130063164","01/04/15","Looked After Children","Looked After Team 1","R1100"
"Wolverhampton City Council","http://opendatacommunities.org/id/metropolitan-district-council/wolverhampton","Capita Resourcing Limited","01485203","1,027.14","Agency Staff","130063169","01/04/15","Learning Disability Assessment & Care Management","Learning Disabilities Assessment and Care Management","R1100"
"Wolverhampton City Council","http://opendatacommunities.org/id/metropolitan-district-council/wolverhampton","Capita Resourcing Limited","01485195","1,305.45","Agency Staff","130063161","01/04/15","Looked After Children","Looked After Team 1","R1100"
"Wolverhampton City Council","http://opendatacommunities.org/id/metropolitan-district-council/wolverhampton","Capita Resourcing Limited","01485196","1,339.05","Agency Staff","130063162","01/04/15","Looked After Children","Looked After Team 1","R1100"
"Wolverhampton City Council","http://opendatacommunities.org/id/metropolitan-district-council/wolverhampton","Capita Resourcing Limited","01485197","317.65","Agency Staff","130063163","01/04/15","Looked After Children","LAC Transitions Team","R1100"
"Wolverhampton City Council","http://opendatacommunities.org/id/metropolitan-district-council/wolverhampton","Capita Resourcing Limited","01479351","1,447.15","Agency Staff","130053509","01/04/15","Looked After Children","Looked After Team 1","R1100"
"Wolverhampton City Council","http://opendatacommunities.org/id/metropolitan-district-council/wolverhampton","Capita Resourcing Limited","01485206","840.26","Agency Staff","130063172","01/04/15","Older People Assessment & Care Management","Assessment Team (West)","R1100"
"Wolverhampton City Council","http://opendatacommunities.org/id/metropolitan-district-council/wolverhampton","Capita Resourcing Limited","01485223","44.10","Agency Staff","130063189","01/04/15","Looked After Children","Looked After Team 1","R1100"
"Wolverhampton City Council","http://opendatacommunities.org/id/metropolitan-district-council/wolverhampton","Capita Resourcing Limited","01484546","1,415.25","Agency Staff","130061922","01/04/15","Children in Need & Child Protection","CIN - Windsor CC - Area 3","R1100"
"Wolverhampton City Council","http://opendatacommunities.org/id/metropolitan-district-council/wolverhampton","Capita Resourcing Limited","01484550","1,415.25","Agency Staff","130061926","01/04/15","Children in Need & Child Protection","CIN - Windsor CC - Area 3","R1100"
"Wolverhampton City Council","http://opendatacommunities.org/id/metropolitan-district-council/wolverhampton","Capita Resourcing Limited","01484549","1,193.25","Agency Staff","130061925","01/04/15","Children in Need & Child Protection","CIN - Windsor CC - Area 3","R1100"
"Wolverhampton City Council","http://opendatacommunities.org/id/metropolitan-district-council/wolverhampton","Capita Resourcing Limited","01484561","1,193.25","Agency Staff","130061937","01/04/15","Children in Need & Child Protection","CIN - Windsor CC - Area 3","R1100"
"Wolverhampton City Council","http://opendatacommunities.org/id/metropolitan-district-council/wolverhampton","Capita Resourcing Limited","400006755","-111.51","Agency Staff","130063284","01/04/15","Learning Disability Provider","Duke Street Bungalows","R1100"
"Wolverhampton City Council","http://opendatacommunities.org/id/metropolitan-district-council/wolverhampton","Capita Resourcing Limited","01485210","430.11","Agency Staff","130063176","01/04/15","Learning Disability Provider","Ernest Bold Court","R1100"
"Wolverhampton City Council","http://opendatacommunities.org/id/metropolitan-district-council/wolverhampton","Capita Resourcing Limited","01485214","469.94","Agency Staff","130063180","01/04/15","Learning Disability Provider","Ernest Bold Court","R1100"
"Wolverhampton City Council","http://opendatacommunities.org/id/metropolitan-district-council/wolverhampton","Capitol Mobility Services Limited","4821","55.00","Equipment - R & M","130061433","01/04/15","Parking Services","Shopmobility","R4003"
"Wolverhampton City Council","http://opendatacommunities.org/id/metropolitan-district-council/wolverhampton","Caritas Recruitment Limited","CA62857","1,461.50","Agency Staff","130059297","01/04/15","Children in Need & Child Protection","CIN - Children�s Vilage CC - Area 8","R1100"
"Wolverhampton City Council","http://opendatacommunities.org/id/metropolitan-district-council/wolverhampton","Caritas Recruitment Limited","CA56065","2,620.95","Agency Staff","130031824","01/04/15","Children in Need & Child Protection","CIN - Children�s Vilage CC - Area 8","R1100"
"Wolverhampton City Council","http://opendatacommunities.org/id/metropolitan-district-council/wolverhampton","Caritas Recruitment Limited","CA60682","1,477.03","Agency Staff","130059293","01/04/15","Children in Need & Child Protection","CIN - Children�s Vilage CC - Area 8","R1100"
"Wolverhampton City Council","http://opendatacommunities.org/id/metropolitan-district-council/wolverhampton","Caritas Recruitment Limited","CA54088","1,369.63","Agency Staff","130059289","01/04/15","Children in Need & Child Protection","CIN - Children�s Vilage CC - Area 8","R1100"
"Wolverhampton City Council","http://opendatacommunities.org/id/metropolitan-district-council/wolverhampton","Caritas Recruitment Limited","CA62569","1,501.96","Agency Staff","130059296","01/04/15","Children in Need & Child Protection","CIN - Children�s Vilage CC - Area 8","R1100"
"Wolverhampton City Council","http://opendatacommunities.org/id/metropolitan-district-council/wolverhampton","Caritas Recruitment Limited","CA64387","1,616.90","Agency Staff","130064198","01/04/15","Children in Need & Child Protection","CIN - Bingley CC - Area 4","R1100"
"Wolverhampton City Council","http://opendatacommunities.org/id/metropolitan-district-council/wolverhampton","Caritas Recruitment Limited","CA63803","1,473.20","Agency Staff","130063925","01/04/15","Children in Need & Child Protection","CIN - Children�s Vilage CC - Area 8","R1100"
"Wolverhampton City Council","http://opendatacommunities.org/id/metropolitan-district-council/wolverhampton","C�Art Art Transport Limited","114692","665.00","Comms - Postage","130063220","01/04/15","Culture Arts & Heritage","Touring Craft Showcases","R4503"
"Wolverhampton City Council","http://opendatacommunities.org/id/metropolitan-district-council/wolverhampton","C�Art Art Transport Limited","114700","625.00","Services - Professional Fees","130063221","01/04/15","Culture Arts & Heritage","Yarah El Sherbini","R4400"
"Wolverhampton City Council","http://opendatacommunities.org/id/metropolitan-district-council/wolverhampton","Carver (Wolverhampton) Limited","PSINV01000964888","112.50","R&M - Departmental planned (internal)","130064024","01/04/15","Engineering & Civic Centre","Asset Management Team","R2000"
"Wolverhampton City Council","http://opendatacommunities.org/id/metropolitan-district-council/wolverhampton","Carver (Wolverhampton) Limited","PSINV01000964881","112.50","R&M - Departmental planned (internal)","130064019","01/04/15","Engineering & Civic Centre","Asset Management Team","R2000"
"Wolverhampton City Council","http://opendatacommunities.org/id/metropolitan-district-council/wolverhampton","Carver (Wolverhampton) Limited","PSINV01000964887","112.50","R&M - Departmental planned (internal)","130064023","01/04/15","Engineering & Civic Centre","Asset Management Team","R2000"
"Wolverhampton City Council","http://opendatacommunities.org/id/metropolitan-district-council/wolverhampton","Carver (Wolverhampton) Limited","PSINV01000964890","52.50","R&M - Departmental planned (internal)","130064025","01/04/15","Engineering & Civic Centre","Asset Management Team","R2000"
"Wolverhampton City Council","http://opendatacommunities.org/id/metropolitan-district-council/wolverhampton","Carver (Wolverhampton) Limited","PSINV01000964891","112.50","R&M - Departmental planned (internal)","130064026","01/04/15","Engineering & Civic Centre","Asset Management Team","R2000"
"Wolverhampton City Council","http://opendatacommunities.org/id/metropolitan-district-council/wolverhampton","Carver (Wolverhampton) Limited","PSINV01000964884","60.00","R&M - Departmental planned (internal)","130064021","01/04/15","Engineering & Civic Centre","Asset Management Team","R2000"
"Wolverhampton City Council","http://opendatacommunities.org/id/metropolitan-district-council/wolverhampton","Carver (Wolverhampton) Limited","PSINV01000964885","67.50","R&M - Departmental planned (internal)","130064022","01/04/15","Engineering & Civic Centre","Asset Management Team","R2000"
"Wolverhampton City Council","http://opendatacommunities.org/id/metropolitan-district-council/wolverhampton","Carver (Wolverhampton) Limited","PSINV01000964883","112.50","R&M - Departmental planned (internal)","130064020","01/04/15","Engineering & Civic Centre","Asset Management Team","R2000"
"Wolverhampton City Council","http://opendatacommunities.org/id/metropolitan-district-council/wolverhampton","Carver (Wolverhampton) Limited","PSINV01000964892","52.50","R&M - Departmental planned (internal)","130064027","01/04/15","Engineering & Civic Centre","Asset Management Team","R2000"
"Wolverhampton City Council","http://opendatacommunities.org/id/metropolitan-district-council/wolverhampton","Carver (Wolverhampton) Limited","PSINV01000960704","18.94","Petrol","130064239","01/04/15","Highways Maintenance","Patching","R3000"
"Wolverhampton City Council","http://opendatacommunities.org/id/metropolitan-district-council/wolverhampton","Carver (Wolverhampton) Limited","280456","300.00","Printing","130063544","01/04/15","Healthier Places Service","Public Health - Healthier Places Team","R4300"
"Wolverhampton City Council","http://opendatacommunities.org/id/metropolitan-district-council/wolverhampton","Carver (Wolverhampton) Limited","PSINV01000939066","24.83","Petrol","130064000","01/04/15","Highways Maintenance","Patching","R3000"
"Wolverhampton City Council","http://opendatacommunities.org/id/metropolitan-district-council/wolverhampton","Carver (Wolverhampton) Limited","PSINV010009835S5","13.87","Petrol","130064037","01/04/15","Highways Maintenance","Patching","R3000"
"Wolverhampton City Council","http://opendatacommunities.org/id/metropolitan-district-council/wolverhampton","Carver (Wolverhampton) Limited","PSINV01000967069","20.67","Petrol","130064028","01/04/15","Highways Maintenance","Patching","R3000"
"Wolverhampton City Council","http://opendatacommunities.org/id/metropolitan-district-council/wolverhampton","Carver (Wolverhampton) Limited","PSINV01000973909","9.28","Petrol","130064033","01/04/15","Highways Maintenance","Patching","R3000"
"Wolverhampton City Council","http://opendatacommunities.org/id/metropolitan-district-council/wolverhampton","Carver (Wolverhampton) Limited","PSINV01000955765","26.41","Petrol","130064011","01/04/15","Highways Maintenance","Patching","R3000"
"Wolverhampton City Council","http://opendatacommunities.org/id/metropolitan-district-council/wolverhampton","Carver (Wolverhampton) Limited","PSINV01000964880","52.50","R&M - Departmental planned (internal)","130064018","01/04/15","Engineering & Civic Centre","Asset Management Team","R2000"
"Wolverhampton City Council","http://opendatacommunities.org/id/metropolitan-district-council/wolverhampton","Carver (Wolverhampton) Limited","PSINV01000920100","23.94","Petrol","130063995","01/04/15","Highways Maintenance","Patching","R3000"
"Wolverhampton City Council","http://opendatacommunities.org/id/metropolitan-district-council/wolverhampton","Carver (Wolverhampton) Limited","PSINV01000858793","21.62","Petrol","130063988","01/04/15","Highways Maintenance","Patching","R3000"
"Wolverhampton City Council","http://opendatacommunities.org/id/metropolitan-district-council/wolverhampton","Carver (Wolverhampton) Limited","PSINV01000906324","19.83","Petrol","130063992","01/04/15","Highways Maintenance","Patching","R3000"
"Wolverhampton City Council","http://opendatacommunities.org/id/metropolitan-district-council/wolverhampton","Carver (Wolverhampton) Limited","PSINV01000860902","18.79","Petrol","130063989","01/04/15","Highways Maintenance","Patching","R3000"
"Wolverhampton City Council","http://opendatacommunities.org/id/metropolitan-district-council/wolverhampton","Carver (Wolverhampton) Limited","PSINV01000950976","23.14","Petrol","130064005","01/04/15","Highways Maintenance","Patching","R3000"
"Wolverhampton City Council","http://opendatacommunities.org/id/metropolitan-district-council/wolverhampton","Carver (Wolverhampton) Limited","PSINV01000923161","23.56","Petrol","130063996","01/04/15","Highways Maintenance","Patching","R3000"
"Wolverhampton City Council","http://opendatacommunities.org/id/metropolitan-district-council/wolverhampton","Carver (Wolverhampton) Limited","PSINV01000957272","14.83","Petrol","130064013","01/04/15","Highways Maintenance","Patching","R3000"
"Wolverhampton City Council","http://opendatacommunities.org/id/metropolitan-district-council/wolverhampton","Carver (Wolverhampton) Limited","PSINV01000981332","14.54","Petrol","130064036","01/04/15","Highways Maintenance","Patching","R3000"
"Wolverhampton City Council","http://opendatacommunities.org/id/metropolitan-district-council/wolverhampton","Carver (Wolverhampton) Limited","PSINV01000955661","21.37","Petrol","130064006","01/04/15","Highways Maintenance","Patching","R3000"
"Wolverhampton City Council","http://opendatacommunities.org/id/metropolitan-district-council/wolverhampton","Carver (Wolverhampton) Limited","PSINV01000940530","29.31","Petrol","130064001","01/04/15","Highways Maintenance","Patching","R3000"
"Wolverhampton City Council","http://opendatacommunities.org/id/metropolitan-district-council/wolverhampton","Carver (Wolverhampton) Limited","PSINV01000946092","20.79","Petrol","130064004","01/04/15","Highways Maintenance","Patching","R3000"
"Wolverhampton City Council","http://opendatacommunities.org/id/metropolitan-district-council/wolverhampton","Carver (Wolverhampton) Limited","PSINV01000943002","24.80","Petrol","130064002","01/04/15","Highways Maintenance","Patching","R3000"
"Wolverhampton City Council","http://opendatacommunities.org/id/metropolitan-district-council/wolverhampton","Carver (Wolverhampton) Limited","PSINV01000932975","24.86","Petrol","130063998","01/04/15","Highways Maintenance","Patching","R3000"
"Wolverhampton City Council","http://opendatacommunities.org/id/metropolitan-district-council/wolverhampton","Cater Walsh Reporting Ltd","102343","187.51","Services - Professional Fees","130063468","01/04/15","Children in Need & Child Protection","Head of Service - CINCP","R4400"
"Wolverhampton City Council","http://opendatacommunities.org/id/metropolitan-district-council/wolverhampton","Caterpillars Nursery Co UK Limited","TFT Spring Final 15","2,137.50","Grant Payments","190110349","01/04/15","Childrens Centres & Early Years","2 Year Olds Pilot - Early Learning & Childcare","R4700"
"Wolverhampton City Council","http://opendatacommunities.org/id/metropolitan-district-council/wolverhampton","Ccs Media Limited","2127792","479.00","Computing - Purchase of Hardware","130064101","01/04/15","ICTS","Strategic ICTS (ICT Service Budget)","R4530"
"Wolverhampton City Council","http://opendatacommunities.org/id/metropolitan-district-council/wolverhampton","Cent. Learn. P�Ship Trust T/A Woden","SEN Top Up Spring Term Woden","985.46","Grant Payments","190110849","01/04/15","Schools","Schools Other Related Expenditure - Contingencies","R4700"
"Wolverhampton City Council","http://opendatacommunities.org/id/metropolitan-district-council/wolverhampton","Central Books","IC95659","13.95","Materials for resale","130064049","01/04/15","Culture Arts & Heritage","Bilston Museum","R4008"
"Wolverhampton City Council","http://opendatacommunities.org/id/metropolitan-district-council/wolverhampton","GO Carz","1222","12.40","Client Transport","130061976","01/04/15","Looked After Children","LAC Transitions Team","R3042"
"Wolverhampton City Council","http://opendatacommunities.org/id/metropolitan-district-council/wolverhampton","GO Carz","1222","-12.40","Client Transport","130061976","01/04/15","Looked After Children","LAC Transitions Team","R3042"
"Wolverhampton City Council","http://opendatacommunities.org/id/metropolitan-district-council/wolverhampton","GO Carz","1222","12.40","Client Transport","130061976","01/04/15","Looked After Children","LAC Transitions Team","R3042"
"Wolverhampton City Council","http://opendatacommunities.org/id/metropolitan-district-council/wolverhampton","GO Carz","1172","542.00","Client Transport","130061974","01/04/15","Looked After Children","LAC Transitions Team","R3042"
"Wolverhampton City Council","http://opendatacommunities.org/id/metropolitan-district-council/wolverhampton","GO Carz","1172","-542.00","Client Transport","130061974","01/04/15","Looked After Children","LAC Transitions Team","R3042"
"Wolverhampton City Council","http://opendatacommunities.org/id/metropolitan-district-council/wolverhampton","GO Carz","1172","542.00","Client Transport","130061974","01/04/15","Looked After Children","LAC Transitions Team","R3042"
"Wolverhampton City Council","http://opendatacommunities.org/id/metropolitan-district-council/wolverhampton","Century Electrical Wholesale Limited","8028064-00","111.02","Materials","130062294","01/04/15","Street Lighting","Street Lighting Maintenance","R4007"
"Wolverhampton City Council","http://opendatacommunities.org/id/metropolitan-district-council/wolverhampton","Chambers Electrical (Wolverhampton) Ltd","40796","596.00","R&M - Departmental planned (external)","130063020","01/04/15","Adult Education","Old Hall Street Main","R2001"
"Wolverhampton City Council","http://opendatacommunities.org/id/metropolitan-district-council/wolverhampton","Chambers Electrical (Wolverhampton) Ltd","40780","89.50","R&M - Departmental planned (external)","130063285","01/04/15","Adult Education","The Maltings","R2001"
"Wolverhampton City Council","http://opendatacommunities.org/id/metropolitan-district-council/wolverhampton","Charterhouse Voice & Data PLC","A106970","6,008.40","Computing - Maint Agreements","130063327","01/04/15","ICTS","Strategic ICTS (ICT Service Budget)","R4534"
"Wolverhampton City Council","http://opendatacommunities.org/id/metropolitan-district-council/wolverhampton","Charterhouse Voice & Data PLC","A106967","277.50","Computing - Maint Agreements","130063326","01/04/15","Schools","Graiseley Primary School","R4534"
"Wolverhampton City Council","http://opendatacommunities.org/id/metropolitan-district-council/wolverhampton","Chipside Limited","S150713","106.50","Computing - Purchase of Hardware","130061216","01/04/15","Parking Services","Parking Enforcement","R4530"
"Wolverhampton City Council","http://opendatacommunities.org/id/metropolitan-district-council/wolverhampton","Chipside Limited","S150738","160.00","Computing - Purchase of Hardware","130061217","01/04/15","Parking Services","Parking Enforcement","R4530"
"Wolverhampton City Council","http://opendatacommunities.org/id/metropolitan-district-council/wolverhampton","Chubb Fire & Security Limited","5117253","218.63","Equipment - R & M","130063846","01/04/15","Operation & Maintenance of Existing Network","UTC Wolverhampton","R4003"
"Wolverhampton City Council","http://opendatacommunities.org/id/metropolitan-district-council/wolverhampton","Cipfa","5159137","768.50","Training Expenses","130063579","01/04/15","Transformation","Centralised Training","R1650"
"Wolverhampton City Council","http://opendatacommunities.org/id/metropolitan-district-council/wolverhampton","Cipfa","5159137","-768.50","Training Expenses","130063579","01/04/15","Transformation","Centralised Training","R1650"
"Wolverhampton City Council","http://opendatacommunities.org/id/metropolitan-district-council/wolverhampton","Cipfa","5159137","768.50","Training Expenses","130063579","01/04/15","Transformation","Centralised Training","R1650"
"Wolverhampton City Council","http://opendatacommunities.org/id/metropolitan-district-council/wolverhampton","City & Guilds","803689315","291.00","Exam Expenses (Non-Employee)","130063309","01/04/15","Adult Education","Discretionary Fund","R4630"
"Wolverhampton City Council","http://opendatacommunities.org/id/metropolitan-district-council/wolverhampton","City Demolition Birmingham Limited","2494","14,355.28","Construction and Conversion","130063249","01/04/15","","Targeted Disposals Programme","C1100"
"Wolverhampton City Council","http://opendatacommunities.org/id/metropolitan-district-council/wolverhampton","City Of Wolverhampton College","INV018483","180.00","Training Expenses","130063374","01/04/15","Audit Services","Site Management Health & Safety","R1650"
"Wolverhampton City Council","http://opendatacommunities.org/id/metropolitan-district-council/wolverhampton","City Of Wolverhampton College","INV018500","600.00","Training Expenses","130064229","01/04/15","Audit Services","Site Management Health & Safety","R1650"
"Wolverhampton City Council","http://opendatacommunities.org/id/metropolitan-district-council/wolverhampton","City Of Wolverhampton College","INV018501","300.00","Training Expenses","130064230","01/04/15","Audit Services","Site Management Health & Safety","R1650"
"Wolverhampton City Council","http://opendatacommunities.org/id/metropolitan-district-council/wolverhampton","Cleveland Land Services Limited","IN035051","6,373.73","Construction and Conversion","130062519","01/04/15","","Sports Investment Strategy","C1100"
"Wolverhampton City Council","http://opendatacommunities.org/id/metropolitan-district-council/wolverhampton","Coca-Cola Enterprises Limited","9102066606","168.18","Provisions (Resale)","130063095","01/04/15","Catering","Education Catering - General Overheads","R4102"
"Wolverhampton City Council","http://opendatacommunities.org/id/metropolitan-district-council/wolverhampton","Coca-Cola Enterprises Limited","9102057903","172.48","Provisions (Resale)","130063094","01/04/15","Catering","Education Catering - General Overheads","R4102"
"Wolverhampton City Council","http://opendatacommunities.org/id/metropolitan-district-council/wolverhampton","Coca-Cola Enterprises Limited","9102088892","164.48","Provisions (Resale)","130063319","01/04/15","Catering","Education Catering - General Overheads","R4102"
"Wolverhampton City Council","http://opendatacommunities.org/id/metropolitan-district-council/wolverhampton","Coca-Cola Enterprises Limited","9102089157","247.15","Provisions (Resale)","130063320","01/04/15","Catering","Education Catering - General Overheads","R4102"
"Wolverhampton City Council","http://opendatacommunities.org/id/metropolitan-district-council/wolverhampton","Commercial Body Fittings Limited","0611982M","129.20","Equipment - Purchase","190110575","01/04/15","Fleet Services","Fleet Management","R4000"
"Wolverhampton City Council","http://opendatacommunities.org/id/metropolitan-district-council/wolverhampton","Connevans Limited","IN325157","40.24","Equipment - Purchase","130063106","01/04/15","Special Educational Needs","SEN Sensory Inclusion","R4000"
"Wolverhampton City Council","http://opendatacommunities.org/id/metropolitan-district-council/wolverhampton","Connevans Limited","IN325157","7.95","Comms - Postage","130063106","01/04/15","Special Educational Needs","SEN Sensory Inclusion","R4503"
"Wolverhampton City Council","http://opendatacommunities.org/id/metropolitan-district-council/wolverhampton","MIR Sheward Musical Instrument repairs","1112","200.00","Equipment - R & M","190110885","01/04/15","School Planning & Resources","Music Support Team","R4003"
"Wolverhampton City Council","http://opendatacommunities.org/id/metropolitan-district-council/wolverhampton","Conservation By Design Limited","HJ545368","45.00","Equipment - Purchase","130063939","01/04/15","Culture Arts & Heritage","Collections & Conservation","R4000"
"Wolverhampton City Council","http://opendatacommunities.org/id/metropolitan-district-council/wolverhampton","Core Assets Childrens Services","5087","735.00","TPP - Social Care Support Services","130051714","01/04/15","Looked After Children","Fostering Team","R5501"
"Wolverhampton City Council","http://opendatacommunities.org/id/metropolitan-district-council/wolverhampton","Core Assets Childrens Services","5151","1,960.00","TPP - Social Care Support Services","130055171","01/04/15","Looked After Children","Fostering Team","R5501"
"Wolverhampton City Council","http://opendatacommunities.org/id/metropolitan-district-council/wolverhampton","Core Assets Childrens Services","5161","2,450.00","TPP - Social Care Support Services","130055546","01/04/15","Looked After Children","Fostering Team","R5501"
"Wolverhampton City Council","http://opendatacommunities.org/id/metropolitan-district-council/wolverhampton","Court Catering Equipment Limited","23041","1,940.05","Equipment - Catering","130063779","01/04/15","Catering","Education Catering - General Overheads","R4010"
"Wolverhampton City Council","http://opendatacommunities.org/id/metropolitan-district-council/wolverhampton","CP Bigwood Limited","63922","60.00","Construction and Conversion","130063854","01/04/15","","Housing General Fund General Schemes - Empty Properties Strategy","C1100"
"Wolverhampton City Council","http://opendatacommunities.org/id/metropolitan-district-council/wolverhampton","CP Bigwood Limited","63920","60.00","Services - Professional Fees","130063853","01/04/15","Estates and Valuations","Disposal Costs","R4400"
"Wolverhampton City Council","http://opendatacommunities.org/id/metropolitan-district-council/wolverhampton","Cpl Petroleum","4133931","975.80","Heating Oil","130063286","01/04/15","School Planning & Resources","Towers Outdoor Education Centre","R2102"
"Wolverhampton City Council","http://opendatacommunities.org/id/metropolitan-district-council/wolverhampton","Cpl Petroleum","4221861","18,142.00","Inventories","190110260","01/04/15","","General Fund Balance Sheet","B3000"
"Wolverhampton City Council","http://opendatacommunities.org/id/metropolitan-district-council/wolverhampton","Cpl Petroleum","4221800","18,219.10","Inventories","190110258","01/04/15","","General Fund Balance Sheet","B3000"
"Wolverhampton City Council","http://opendatacommunities.org/id/metropolitan-district-council/wolverhampton","Cpl Petroleum","4221821","676.05","Inventories","190110259","01/04/15","","General Fund Balance Sheet","B3000"
"Wolverhampton City Council","http://opendatacommunities.org/id/metropolitan-district-council/wolverhampton","Crafts Magazine","17095","86.70","Marketing \ Non-staff advertising","130063510","01/04/15","Culture Arts & Heritage","Happiness","R4317"
"Wolverhampton City Council","http://opendatacommunities.org/id/metropolitan-district-council/wolverhampton","Craftspace Limited","2449","300.00","Services - Professional Fees","130064104","01/04/15","Culture Arts & Heritage","Craft & Conflict","R4400"
"Wolverhampton City Council","http://opendatacommunities.org/id/metropolitan-district-council/wolverhampton","Crisis Prevention Institute,Inc.","CUKI0005059","1,300.00","Training Expenses","130063343","01/04/15","Transformation","Workforce Development","R1650"
"Wolverhampton City Council","http://opendatacommunities.org/id/metropolitan-district-council/wolverhampton","CTT (Wolverhampton) Limited","11388","1,625.00","Construction and Conversion","130063484","01/04/15","","Contingency for Emergency Works","C1100"
"Wolverhampton City Council","http://opendatacommunities.org/id/metropolitan-district-council/wolverhampton","CTT (Wolverhampton) Limited","11388","-1,625.00","Construction and Conversion","130063484","01/04/15","","Contingency for Emergency Works","C1100"
"Wolverhampton City Council","http://opendatacommunities.org/id/metropolitan-district-council/wolverhampton","CTT (Wolverhampton) Limited","11388","1,625.00","Construction and Conversion","130063484","01/04/15","","Contingency for Emergency Works","C1100"
"Wolverhampton City Council","http://opendatacommunities.org/id/metropolitan-district-council/wolverhampton","Cycle Actifit Community Interest Co.","1290","560.00","Equipment - Purchase","130063492","01/04/15","Management and Administration","Public Health Support Costs","R4000"
"Wolverhampton City Council","http://opendatacommunities.org/id/metropolitan-district-council/wolverhampton","Cycle Actifit Community Interest Co.","1290","-560.00","Equipment - Purchase","130063492","01/04/15","Management and Administration","Public Health Support Costs","R4000"
"Wolverhampton City Council","http://opendatacommunities.org/id/metropolitan-district-council/wolverhampton","Cycle Actifit Community Interest Co.","1290","560.00","Equipment - Purchase","130063492","01/04/15","Management and Administration","Public Health Support Costs","R4000"
"Wolverhampton City Council","http://opendatacommunities.org/id/metropolitan-district-council/wolverhampton","Cyclepods Limited","3676","4,231.50","Plant, Equipment, Machinery & Computer Hardware","130063799","01/04/15","","Integrated Transport","C3000"
"Wolverhampton City Council","http://opendatacommunities.org/id/metropolitan-district-council/wolverhampton","D & G Educational Limited","544098","74.50","Equipment - Purchase","130064154","01/04/15","Childrens Centres & Early Years","Children�s Village Children Centre (School Staff)","R4000"
"Wolverhampton City Council","http://opendatacommunities.org/id/metropolitan-district-council/wolverhampton","D & G Educational Limited","544119","320.00","Equipment - Purchase","130064155","01/04/15","Childrens Centres & Early Years","Children�s Village Children Centre (School Staff)","R4000"
"Wolverhampton City Council","http://opendatacommunities.org/id/metropolitan-district-council/wolverhampton","D C Nutt","19566","92.00","R&M - Departmental planned (internal)","130064095","01/04/15","Adult Education","Creative Studies Delivery Area","R2000"
"Wolverhampton City Council","http://opendatacommunities.org/id/metropolitan-district-council/wolverhampton","Places for People Leisure Management","SI-C026-100120233","50.68","Use of Leisure Facilities","130063148","01/04/15","Schools","New Park Special School","R4410"
"Wolverhampton City Council","http://opendatacommunities.org/id/metropolitan-district-council/wolverhampton","Dell Corporation/Dell Incorporated","7402194521","1,558.00","Computing - Maint Agreements","130063078","01/04/15","Adult Education","ICT Services","R4534"
"Wolverhampton City Council","http://opendatacommunities.org/id/metropolitan-district-council/wolverhampton","Dell Corporation/Dell Incorporated","7402192634","1,043.40","Computing - Purchase of Hardware","130062479","01/04/15","ICTS","Strategic ICTS (ICT Service Budget)","R4530"
"Wolverhampton City Council","http://opendatacommunities.org/id/metropolitan-district-council/wolverhampton","Dennis Eagle Limited","DE10856318","15.45","Equipment - Purchase","190110582","01/04/15","Fleet Services","Fleet Management","R4000"
"Wolverhampton City Council","http://opendatacommunities.org/id/metropolitan-district-council/wolverhampton","Dennis Eagle Limited","DE10856007","38.08","Equipment - Purchase","190110261","01/04/15","Fleet Services","Fleet Management","R4000"
"Wolverhampton City Council","http://opendatacommunities.org/id/metropolitan-district-council/wolverhampton","Dennis Eagle Limited","DE10856694","135.07","Equipment - Purchase","190110993","01/04/15","Fleet Services","Fleet Management","R4000"
"Wolverhampton City Council","http://opendatacommunities.org/id/metropolitan-district-council/wolverhampton","Dennis Eagle Limited","DE10856694","69.66","Equipment - Purchase","190110993","01/04/15","Fleet Services","Fleet Management","R4000"
"Wolverhampton City Council","http://opendatacommunities.org/id/metropolitan-district-council/wolverhampton","Dennis Eagle Limited","DE10857337","40.19","Equipment - Purchase","190111222","01/04/15","Fleet Services","Fleet Management","R4000"
"Wolverhampton City Council","http://opendatacommunities.org/id/metropolitan-district-council/wolverhampton","Dennis Eagle Limited","DE10857339","116.62","Equipment - Purchase","190111224","01/04/15","Fleet Services","Fleet Management","R4000"
"Wolverhampton City Council","http://opendatacommunities.org/id/metropolitan-district-council/wolverhampton","Dennis Eagle Limited","DE10857338","221.00","Equipment - Purchase","190111223","01/04/15","Fleet Services","Fleet Management","R4000"
"Wolverhampton City Council","http://opendatacommunities.org/id/metropolitan-district-council/wolverhampton","Direct Healthcare Services Limited","19253","1,204.56","Equipment - Purchase","130064094","01/04/15","Older People Provider Services","Older People Provider Management","R4000"
"Wolverhampton City Council","http://opendatacommunities.org/id/metropolitan-district-council/wolverhampton","Direct Healthcare Services Limited","310","-78.40","Equipment - R & M","130063275","01/04/15","Independent Living Service","Independent Living Service","R4003"
"Wolverhampton City Council","http://opendatacommunities.org/id/metropolitan-district-council/wolverhampton","Direct Healthcare Services Limited","312","-11.20","Equipment - R & M","130063277","01/04/15","Independent Living Service","Independent Living Service","R4003"
"Wolverhampton City Council","http://opendatacommunities.org/id/metropolitan-district-council/wolverhampton","Direct Healthcare Services Limited","311","-392.00","Equipment - R & M","130063276","01/04/15","Independent Living Service","Independent Living Service","R4003"
"Wolverhampton City Council","http://opendatacommunities.org/id/metropolitan-district-council/wolverhampton","Direct Healthcare Services Limited","19166","2,954.10","Equipment - Purchase","130063006","01/04/15","Independent Living Service","Independent Living Service","R4000"
"Wolverhampton City Council","http://opendatacommunities.org/id/metropolitan-district-council/wolverhampton","Direct Security Systems (Mids) Limited","103252","85.00","Services - Security","130063469","01/04/15","Social Inclusion & Play Service","MAST 1 - Deansfield","R4405"
"Wolverhampton City Council","http://opendatacommunities.org/id/metropolitan-district-council/wolverhampton","Direct Security Systems (Mids) Limited","103296","595.00","Services - Security","130063470","01/04/15","Engineering & Civic Centre","Statutory Services (10RM)","R4405"
"Wolverhampton City Council","http://opendatacommunities.org/id/metropolitan-district-council/wolverhampton","Disable Aids (Cannock) Limited","72541","392.13","Equipment - R & M","130063077","01/04/15","Independent Living Service","Independent Living Service","R4003"
"Wolverhampton City Council","http://opendatacommunities.org/id/metropolitan-district-council/wolverhampton","Disable Aids (Cannock) Limited","72165","350.00","Construction and Conversion","130059267","01/04/15","","Adaptations for People with Disabilites","C1100"
"Wolverhampton City Council","http://opendatacommunities.org/id/metropolitan-district-council/wolverhampton","District Surveyors Assoc Limited (Labc)","112312","995.00","Training Expenses","130063483","01/04/15","Regulatory Services","Food Hygiene Courses","R1650"
"Wolverhampton City Council","http://opendatacommunities.org/id/metropolitan-district-council/wolverhampton","DMW Environmental Safety Limited","42262","1,425.00","Services - Fees and Charges","130063570","01/04/15","Engineering & Civic Centre","Statutory Services (10RM)","R4401"
"Wolverhampton City Council","http://opendatacommunities.org/id/metropolitan-district-council/wolverhampton","Dodd Group (Midlands)Limited","012913","1,350.00","Computing - Purchase of Hardware","130064272","01/04/15","Mental Health Provider","Mental Health Assessment & Care Management","R4530"
"Wolverhampton City Council","http://opendatacommunities.org/id/metropolitan-district-council/wolverhampton","Domestic Gas Services Limited","26108","3,955.00","Grants paid out","130064364","01/04/15","","Housing General Fund General Schemes - Affordable Warmth","C5000"
"Wolverhampton City Council","http://opendatacommunities.org/id/metropolitan-district-council/wolverhampton","Domestic Gas Services Limited","26091","3,373.40","Grants paid out","130063542","01/04/15","","Housing General Fund General Schemes - Affordable Warmth","C5000"
"Wolverhampton City Council","http://opendatacommunities.org/id/metropolitan-district-council/wolverhampton","Dr Chris Upton","BCE-4","140.00","Services - Professional Fees","130063923","01/04/15","Culture Arts & Heritage","Black Country Echoes","R4400"
"Wolverhampton City Council","http://opendatacommunities.org/id/metropolitan-district-council/wolverhampton","Dr Chris Upton","BCE 30.9.2014","250.00","Services - Professional Fees","130064445","01/04/15","Culture Arts & Heritage","Black Country Echoes","R4400"
"Wolverhampton City Council","http://opendatacommunities.org/id/metropolitan-district-council/wolverhampton","Dr M Rehman","MR707/807","1,432.80","Services - Consultants","190110232","01/04/15","Safeguarding","MCA General","R4404"
"Wolverhampton City Council","http://opendatacommunities.org/id/metropolitan-district-council/wolverhampton","Mumtaz & Sadaf Ltd","MNK647/811","2,315.80","Services - Consultants","190110231","01/04/15","Safeguarding","MCA General","R4404"
"Wolverhampton City Council","http://opendatacommunities.org/id/metropolitan-district-council/wolverhampton","Dr. Perrinbanayagam Aiyadurai","AP653/802","959.00","Services - Consultants","190110230","01/04/15","Safeguarding","MCA General","R4404"
"Wolverhampton City Council","http://opendatacommunities.org/id/metropolitan-district-council/wolverhampton","Dukes Bailiffs Limited","27488 / B","23.19","Services - Professional Fees","130063264","01/04/15","Revenues & Benefits","Revenues","R4400"
"Wolverhampton City Council","http://opendatacommunities.org/id/metropolitan-district-council/wolverhampton","E.On(Consumption Of Gas/Elec Units).","H112E033A8","30.70","Electricity","190110601","01/04/15","Estates and Valuations","Industrial Premises ; Fordhouse Road","R2100"
"Wolverhampton City Council","http://opendatacommunities.org/id/metropolitan-district-council/wolverhampton","ECMAT - Smestow School","SEN Top Up Spring Term Smestow","2,615.95","Grant Payments","190110841","01/04/15","Schools","Schools Other Related Expenditure - Contingencies","R4700"
"Wolverhampton City Council","http://opendatacommunities.org/id/metropolitan-district-council/wolverhampton","ECMAT - Smestow School","SEN Resource Base Spring Term Top Up Smestow","6,344.85","Grant Payments","190110851","01/04/15","Schools","Schools Other Related Expenditure - Contingencies","R4700"
"Wolverhampton City Council","http://opendatacommunities.org/id/metropolitan-district-council/wolverhampton","Eden Brown Limited","3S124451","146.30","Agency Staff","130044218","01/04/15","Learning Disability Provider","Support Plus","R1100"
"Wolverhampton City Council","http://opendatacommunities.org/id/metropolitan-district-council/wolverhampton","Eden Brown Limited","3S124452","73.15","Agency Staff","130044219","01/04/15","Learning Disability Provider","Support Plus","R1100"
"Wolverhampton City Council","http://opendatacommunities.org/id/metropolitan-district-council/wolverhampton","Eden Brown Limited","2R143287","1,959.75","Agency Staff","130063550","01/04/15","Revenues & Benefits","Revenues","R1100"
"Wolverhampton City Council","http://opendatacommunities.org/id/metropolitan-district-council/wolverhampton","Eden Brown Limited","2R142180","1,189.25","Agency Staff","130063266","01/04/15","Revenues & Benefits","Revenues","R1100"
"Wolverhampton City Council","http://opendatacommunities.org/id/metropolitan-district-council/wolverhampton","Eden Brown Limited","2R142542","1,591.25","Agency Staff","130063267","01/04/15","Revenues & Benefits","Revenues","R1100"
"Wolverhampton City Council","http://opendatacommunities.org/id/metropolitan-district-council/wolverhampton","Eden Brown Limited","3S126234","193.56","Agency Staff","130063283","01/04/15","Learning Disability Provider","Church Street","R1100"
"Wolverhampton City Council","http://opendatacommunities.org/id/metropolitan-district-council/wolverhampton","Eden Brown Limited","3S126033","168.32","Agency Staff","130063017","01/04/15","Learning Disability Provider","Church Street","R1100"
"Wolverhampton City Council","http://opendatacommunities.org/id/metropolitan-district-council/wolverhampton","Eden Brown Limited","3S126235","701.66","Agency Staff","130063018","01/04/15","Learning Disability Provider","Church Street","R1100"
"Wolverhampton City Council","http://opendatacommunities.org/id/metropolitan-district-council/wolverhampton","Eden Brown Limited","3S129042","208.39","Agency Staff","130063019","01/04/15","Learning Disability Provider","Community Access & Leisure - North","R1100"
"Wolverhampton City Council","http://opendatacommunities.org/id/metropolitan-district-council/wolverhampton","Eden Brown Limited","2R139677","315.77","Agency Staff","130003028","01/04/15","Customer Services","City Direct","R1100"
"Wolverhampton City Council","http://opendatacommunities.org/id/metropolitan-district-council/wolverhampton","Eden Brown Limited","3H119361","101.33","Agency Staff","130003032","01/04/15","Customer Services","City Direct","R1100"
"Wolverhampton City Council","http://opendatacommunities.org/id/metropolitan-district-council/wolverhampton","Eden Brown Limited","2R143517","1,086.75","Agency Staff","130063271","01/04/15","Revenues & Benefits","Revenues","R1100"
"Wolverhampton City Council","http://opendatacommunities.org/id/metropolitan-district-council/wolverhampton","Eden Brown Limited","2R142884","1,490.75","Agency Staff","130063268","01/04/15","Revenues & Benefits","Revenues","R1100"
"Wolverhampton City Council","http://opendatacommunities.org/id/metropolitan-district-council/wolverhampton","Eden Brown Limited","2R143516","1,108.08","Agency Staff","130063270","01/04/15","Revenues & Benefits","Benefits","R1100"
"Wolverhampton City Council","http://opendatacommunities.org/id/metropolitan-district-council/wolverhampton","Eden Brown Limited","3S125979","320.60","Agency Staff","130020045","01/04/15","Learning Disability Provider","Outreach Support","R1100"
"Wolverhampton City Council","http://opendatacommunities.org/id/metropolitan-district-council/wolverhampton","Eden Brown Limited","3S125033","208.39","Agency Staff","130007307","01/04/15","Learning Disability Provider","Church Street","R1100"
"Wolverhampton City Council","http://opendatacommunities.org/id/metropolitan-district-council/wolverhampton","Eden Brown Limited","3S126082","384.72","Agency Staff","130054111","01/04/15","Learning Disability Provider","Community Access & Leisure - North","R1100"
"Wolverhampton City Council","http://opendatacommunities.org/id/metropolitan-district-council/wolverhampton","Eden Brown Limited","3S120979","72.80","Agency Staff","130023246","01/04/15","Learning Disability Provider","Duke Street Bungalows","R1100"
"Wolverhampton City Council","http://opendatacommunities.org/id/metropolitan-district-council/wolverhampton","Eden Brown Limited","3S126042","128.24","Agency Staff","130019745","01/04/15","Learning Disability Provider","Duke Street Bungalows","R1100"
"Wolverhampton City Council","http://opendatacommunities.org/id/metropolitan-district-council/wolverhampton","Eden Brown Limited","3S126040","625.17","Agency Staff","130019743","01/04/15","Learning Disability Provider","Duke Street Bungalows","R1100"
"Wolverhampton City Council","http://opendatacommunities.org/id/metropolitan-district-council/wolverhampton","Eden Brown Limited","3S126047","112.21","Agency Staff","130019305","01/04/15","Learning Disability Provider","Duke Street Bungalows","R1100"
"Wolverhampton City Council","http://opendatacommunities.org/id/metropolitan-district-council/wolverhampton","Eden Brown Limited","3S126044","601.13","Agency Staff","130019747","01/04/15","Learning Disability Provider","Duke Street Bungalows","R1100"
"Wolverhampton City Council","http://opendatacommunities.org/id/metropolitan-district-council/wolverhampton","Eden Brown Limited","3S126046","593.11","Agency Staff","130019304","01/04/15","Learning Disability Provider","Duke Street Bungalows","R1100"
"Wolverhampton City Council","http://opendatacommunities.org/id/metropolitan-district-council/wolverhampton","Eden Brown Limited","3S125321","208.39","Agency Staff","130010340","01/04/15","Learning Disability Provider","Duke Street Bungalows","R1100"
"Wolverhampton City Council","http://opendatacommunities.org/id/metropolitan-district-council/wolverhampton","Eden Brown Limited","3S129348","580.68","Agency Staff","130062231","01/04/15","Learning Disability Provider","Community Enablement","R1100"
"Wolverhampton City Council","http://opendatacommunities.org/id/metropolitan-district-council/wolverhampton","Eden Brown Limited","3S128607","677.46","Agency Staff","130054442","01/04/15","Learning Disability Provider","Outreach Support","R1100"
"Wolverhampton City Council","http://opendatacommunities.org/id/metropolitan-district-council/wolverhampton","Eden Brown Limited","3S129111","225.82","Agency Staff","130058996","01/04/15","Learning Disability Provider","Outreach Support","R1100"
"Wolverhampton City Council","http://opendatacommunities.org/id/metropolitan-district-council/wolverhampton","Eden Brown Limited","3S129110","241.95","Agency Staff","130058995","01/04/15","Learning Disability Provider","Outreach Support","R1100"
"Wolverhampton City Council","http://opendatacommunities.org/id/metropolitan-district-council/wolverhampton","Eden Brown Limited","3S129112","258.08","Agency Staff","130058997","01/04/15","Learning Disability Provider","Outreach Support","R1100"
"Wolverhampton City Council","http://opendatacommunities.org/id/metropolitan-district-council/wolverhampton","Eden Brown Limited","3S128003","338.73","Agency Staff","130061884","01/04/15","Learning Disability Provider","Outreach Support","R1100"
"Wolverhampton City Council","http://opendatacommunities.org/id/metropolitan-district-council/wolverhampton","Eden Brown Limited","3S129060","161.30","Agency Staff","130058985","01/04/15","Learning Disability Provider","Outreach Support","R1100"
"Wolverhampton City Council","http://opendatacommunities.org/id/metropolitan-district-council/wolverhampton","Eden Brown Limited","3S129061","387.12","Agency Staff","130058986","01/04/15","Learning Disability Provider","Outreach Support","R1100"
"Wolverhampton City Council","http://opendatacommunities.org/id/metropolitan-district-council/wolverhampton","Eden Brown Limited","3S129059","241.95","Agency Staff","130059230","01/04/15","Learning Disability Provider","Outreach Support","R1100"
"Wolverhampton City Council","http://opendatacommunities.org/id/metropolitan-district-council/wolverhampton","Eden Brown Limited","3S128778","296.56","Agency Staff","130058977","01/04/15","Learning Disability Provider","Outreach Support","R1100"
"Wolverhampton City Council","http://opendatacommunities.org/id/metropolitan-district-council/wolverhampton","Eden Brown Limited","3S129063","104.85","Agency Staff","130058988","01/04/15","Learning Disability Provider","Outreach Support","R1100"
"Wolverhampton City Council","http://opendatacommunities.org/id/metropolitan-district-council/wolverhampton","Eden Brown Limited","3S129062","298.41","Agency Staff","130058987","01/04/15","Learning Disability Provider","Outreach Support","R1100"
"Wolverhampton City Council","http://opendatacommunities.org/id/metropolitan-district-council/wolverhampton","Eden Brown Limited","3S129109","64.12","Agency Staff","130058994","01/04/15","Learning Disability Provider","Outreach Support","R1100"
"Wolverhampton City Council","http://opendatacommunities.org/id/metropolitan-district-council/wolverhampton","Eden Brown Limited","3S126945","250.02","Agency Staff","130061881","01/04/15","Learning Disability Provider","Outreach Support","R1100"
"Wolverhampton City Council","http://opendatacommunities.org/id/metropolitan-district-council/wolverhampton","Eden Brown Limited","3S129064","160.30","Agency Staff","130058989","01/04/15","Learning Disability Provider","Outreach Support","R1100"
"Wolverhampton City Council","http://opendatacommunities.org/id/metropolitan-district-council/wolverhampton","Eden Brown Limited","3S128775","250.02","Agency Staff","130058976","01/04/15","Learning Disability Provider","Outreach Support","R1100"
"Wolverhampton City Council","http://opendatacommunities.org/id/metropolitan-district-council/wolverhampton","Eden Brown Limited","2R143400","1,449.00","Agency Staff","130062045","01/04/15","Revenues & Benefits","Revenues","R1100"
"Wolverhampton City Council","http://opendatacommunities.org/id/metropolitan-district-council/wolverhampton","Eden Brown Limited","2R143398","1,075.68","Agency Staff","130062044","01/04/15","Revenues & Benefits","Benefits","R1100"
"Wolverhampton City Council","http://opendatacommunities.org/id/metropolitan-district-council/wolverhampton","Eden Brown Limited","3S129344","596.81","Agency Staff","130062228","01/04/15","Learning Disability Provider","Duke Street Bungalows","R1100"
"Wolverhampton City Council","http://opendatacommunities.org/id/metropolitan-district-council/wolverhampton","Eden Brown Limited","3S126845","-1,330.15","Agency Staff","130027841","01/04/15","Children in Need & Child Protection","Eastfield 1 Social Work Unit - Area 1","R1100"
"Wolverhampton City Council","http://opendatacommunities.org/id/metropolitan-district-council/wolverhampton","Eden Brown Limited","3S126846","-1,330.15","Agency Staff","130027842","01/04/15","Children in Need & Child Protection","South East Locality Service - Section 17","R1100"
"Wolverhampton City Council","http://opendatacommunities.org/id/metropolitan-district-council/wolverhampton","Eden Brown Limited","3S126844","-1,330.15","Agency Staff","130027840","01/04/15","Communications & Marketing","A&C/CYP","R1100"
"Wolverhampton City Council","http://opendatacommunities.org/id/metropolitan-district-council/wolverhampton","Eden Brown Limited","3S126840","-1,330.15","Agency Staff","130027836","01/04/15","Children in Need & Child Protection","South East Locality Service - Section 17","R1100"
"Wolverhampton City Council","http://opendatacommunities.org/id/metropolitan-district-council/wolverhampton","Eden Brown Limited","3S126847","-1,330.15","Agency Staff","130027843","01/04/15","Children in Need & Child Protection","South East Locality Service - Section 17","R1100"
"Wolverhampton City Council","http://opendatacommunities.org/id/metropolitan-district-council/wolverhampton","Eden Brown Limited","3S126848","-1,330.15","Agency Staff","130027844","01/04/15","Children in Need & Child Protection","South East Locality Service - Section 17","R1100"
"Wolverhampton City Council","http://opendatacommunities.org/id/metropolitan-district-council/wolverhampton","Eden Brown Limited","3S126849","-1,330.15","Agency Staff","130027845","01/04/15","Children in Need & Child Protection","South East Locality Service - Section 17","R1100"
"Wolverhampton City Council","http://opendatacommunities.org/id/metropolitan-district-council/wolverhampton","Eden Brown Limited","3S126851","-1,330.15","Agency Staff","130027847","01/04/15","Welfare Rights & Financial Assessment","Local Welfare Assistance - Administration","R1100"
"Wolverhampton City Council","http://opendatacommunities.org/id/metropolitan-district-council/wolverhampton","Eden Brown Limited","3S126854","-1,330.15","Agency Staff","130027850","01/04/15","Children in Need & Child Protection","Eastfield 1 Social Work Unit - Area 1","R1100"
"Wolverhampton City Council","http://opendatacommunities.org/id/metropolitan-district-council/wolverhampton","Eden Brown Limited","3S129346","129.04","Agency Staff","130062230","01/04/15","Learning Disability Provider","Duke Street Bungalows","R1100"
"Wolverhampton City Council","http://opendatacommunities.org/id/metropolitan-district-council/wolverhampton","Eden Brown Limited","3S126835","-1,330.15","Agency Staff","130027831","01/04/15","Children in Need & Child Protection","Eastfield 1 Social Work Unit - Area 1","R1100"
"Wolverhampton City Council","http://opendatacommunities.org/id/metropolitan-district-council/wolverhampton","Eden Brown Limited","3S126836","-1,330.15","Agency Staff","130027832","01/04/15","Children in Need & Child Protection","Eastfield 1 Social Work Unit - Area 1","R1100"
"Wolverhampton City Council","http://opendatacommunities.org/id/metropolitan-district-council/wolverhampton","Eden Brown Limited","3S129345","629.07","Agency Staff","130062229","01/04/15","Learning Disability Provider","Duke Street Bungalows","R1100"
"Wolverhampton City Council","http://opendatacommunities.org/id/metropolitan-district-council/wolverhampton","Eden Brown Limited","3S126837","-1,330.15","Agency Staff","130027833","01/04/15","Children in Need & Child Protection","Eastfield 1 Social Work Unit - Area 1","R1100"
"Wolverhampton City Council","http://opendatacommunities.org/id/metropolitan-district-council/wolverhampton","Eden Brown Limited","3S126834","-1,330.15","Agency Staff","130027830","01/04/15","Children in Need & Child Protection","Eastfield 1 Social Work Unit - Area 1","R1100"
"Wolverhampton City Council","http://opendatacommunities.org/id/metropolitan-district-council/wolverhampton","Eden Brown Limited","3S126833","-1,330.15","Agency Staff","130027829","01/04/15","Children in Need & Child Protection","Eastfield 1 Social Work Unit - Area 1","R1100"
"Wolverhampton City Council","http://opendatacommunities.org/id/metropolitan-district-council/wolverhampton","Eden Brown Limited","3S126838","-1,330.15","Agency Staff","130027834","01/04/15","Children in Need & Child Protection","Eastfield 1 Social Work Unit - Area 1","R1100"
"Wolverhampton City Council","http://opendatacommunities.org/id/metropolitan-district-council/wolverhampton","Eden Brown Limited","3S126839","-1,330.15","Agency Staff","130027835","01/04/15","Children in Need & Child Protection","South East Locality Service - Section 17","R1100"
"Wolverhampton City Council","http://opendatacommunities.org/id/metropolitan-district-council/wolverhampton","Eden Brown Limited","3S125221","240.45","Agency Staff","130009404","01/04/15","Learning Disability Provider","Church Street","R1100"
"Wolverhampton City Council","http://opendatacommunities.org/id/metropolitan-district-council/wolverhampton","Eduzone Limited","65300","399.00","Equipment - Purchase","130063589","01/04/15","Childrens Centres & Early Years","Children�s Village Children Centre (School Staff)","R4000"
"Wolverhampton City Council","http://opendatacommunities.org/id/metropolitan-district-council/wolverhampton","Empty Homes Network","150144","95.00","Subscriptions","130063499","01/04/15","Housing","Private Sector Housing","R4701"
"Wolverhampton City Council","http://opendatacommunities.org/id/metropolitan-district-council/wolverhampton","Enable Technology Training Limited","ETT 5059","995.00","Training Expenses","130063345","01/04/15","School Planning & Resources","Education Data Services","R1650"
"Wolverhampton City Council","http://opendatacommunities.org/id/metropolitan-district-council/wolverhampton","Enterprise Managed Services Limited","299611","723.24","TPP - Waste Disposal","130010324","01/04/15","Older People Assessment & Care Management","Assessment Team (West)","R5003"
"Wolverhampton City Council","http://opendatacommunities.org/id/metropolitan-district-council/wolverhampton","Enterprise Managed Services Limited","90405374","28.30","TPP - Waste Disposal","130063318","01/04/15","Waste and Recycling Service","Waste Man.Partnership-Green Kerb Coll�n","R5003"
"Wolverhampton City Council","http://opendatacommunities.org/id/metropolitan-district-council/wolverhampton","Enterprise Managed Services Limited","90397642","1,488.40","TPP - Waste Disposal","130063316","01/04/15","Learning Disability Provider","Duke Street Bungalows","R5003"
"Wolverhampton City Council","http://opendatacommunities.org/id/metropolitan-district-council/wolverhampton","Enterprise Managed Services Limited","300289.","389.27","Agency Staff","130063553","01/04/15","Older People Provider Services","Bradley Lodge Resource Centre","R1100"
"Wolverhampton City Council","http://opendatacommunities.org/id/metropolitan-district-council/wolverhampton","Enterprise Managed Services Limited","90405656","41,600.00","TPP - Waste Disposal","130063614","01/04/15","Waste and Recycling Service","Waste Collection and Recycling Service - General","R5003"
"Wolverhampton City Council","http://opendatacommunities.org/id/metropolitan-district-council/wolverhampton","Enterprise Managed Services Limited","90406426","41.50","TPP - Waste Disposal","130064190","01/04/15","Engineering & Civic Centre","Management of Vacant Properties","R5003"
"Wolverhampton City Council","http://opendatacommunities.org/id/metropolitan-district-council/wolverhampton","Entrust Social Care Limited","35073","1,634.57","Agency Staff","130061788","01/04/15","Safeguarding","Safeguarding Children","R1100"
"Wolverhampton City Council","http://opendatacommunities.org/id/metropolitan-district-council/wolverhampton","Entrust Social Care Limited","35104","1,493.69","Agency Staff","130062729","01/04/15","Safeguarding","Safeguarding Children","R1100"
"Wolverhampton City Council","http://opendatacommunities.org/id/metropolitan-district-council/wolverhampton","Entrust Social Care Limited","35156","1,480.00","Agency Staff","130063280","01/04/15","Children in Need & Child Protection","CIN - Windsor CC - Area 3","R1100"
"Wolverhampton City Council","http://opendatacommunities.org/id/metropolitan-district-council/wolverhampton","Entrust Social Care Limited","35107","1,332.00","Agency Staff","130062732","01/04/15","Children in Need & Child Protection","CIN - Windsor CC - Area 3","R1100"
"Wolverhampton City Council","http://opendatacommunities.org/id/metropolitan-district-council/wolverhampton","Entrust Social Care Limited","33052","1,369.00","Agency Staff","130061785","01/04/15","Children in Need & Child Protection","CIN - Windsor CC - Area 3","R1100"
"Wolverhampton City Council","http://opendatacommunities.org/id/metropolitan-district-council/wolverhampton","Entrust Social Care Limited","33530","1,332.00","Agency Staff","130039597","01/04/15","Children in Need & Child Protection","CIN - Berries CC - Area 7","R1100"
"Wolverhampton City Council","http://opendatacommunities.org/id/metropolitan-district-council/wolverhampton","Entrust Social Care Limited","35191","1,554.00","Agency Staff","130064128","01/04/15","Children in Need & Child Protection","CIN - Warstones MAST - Area 4","R1100"
"Wolverhampton City Council","http://opendatacommunities.org/id/metropolitan-district-council/wolverhampton","Entrust Social Care Limited","35208","1,480.00","Agency Staff","130064130","01/04/15","Children in Need & Child Protection","CIN - Windsor CC - Area 3","R1100"
"Wolverhampton City Council","http://opendatacommunities.org/id/metropolitan-district-council/wolverhampton","Enviro Technology Services PLC","20683","1,502.57","Services - Professional Fees","130063515","01/04/15","Regulatory Services","Air Quality","R4400"
"Wolverhampton City Council","http://opendatacommunities.org/id/metropolitan-district-council/wolverhampton","Epos Group","44777","45.00","Fixtures and Fittings - R&M","130062744","01/04/15","Library Services","Global Budgets","R2502"
"Wolverhampton City Council","http://opendatacommunities.org/id/metropolitan-district-council/wolverhampton","ERF Electrical Wholesalers Limited","12499379-00","104.00","Materials","130063223","01/04/15","Engineering & Civic Centre","Civic Centre","R4007"
"Wolverhampton City Council","http://opendatacommunities.org/id/metropolitan-district-council/wolverhampton","ERF Electrical Wholesalers Limited","12509128-00","985.50","Materials","130063224","01/04/15","Engineering & Civic Centre","Civic Centre","R4007"
"Wolverhampton City Council","http://opendatacommunities.org/id/metropolitan-district-council/wolverhampton","ERF Electrical Wholesalers Limited","12510741-00","92.50","Materials","130063742","01/04/15","Engineering & Civic Centre","Civic Centre","R4007"
"Wolverhampton City Council","http://opendatacommunities.org/id/metropolitan-district-council/wolverhampton","ERF Electrical Wholesalers Limited","12511484-00","100.52","Materials","130063743","01/04/15","Engineering & Civic Centre","Civic Centre","R4007"
"Wolverhampton City Council","http://opendatacommunities.org/id/metropolitan-district-council/wolverhampton","ERF Electrical Wholesalers Limited","12509711-00","20.93","Materials","130063741","01/04/15","Engineering & Civic Centre","Civic Centre","R4007"
"Wolverhampton City Council","http://opendatacommunities.org/id/metropolitan-district-council/wolverhampton","ERF Electrical Wholesalers Limited","12505667-00","714.78","Materials","130064326","01/04/15","Engineering & Civic Centre","Civic Centre","R4007"
"Wolverhampton City Council","http://opendatacommunities.org/id/metropolitan-district-council/wolverhampton","Essentra Packaging & Security Limited","254119","284.50","Equipment - Purchase","130062722","01/04/15","Engineering & Civic Centre","Civic Centre","R4000"
"Wolverhampton City Council","http://opendatacommunities.org/id/metropolitan-district-council/wolverhampton","Evans Halshaw Ford","775117","-52.88","Equipment - Purchase","190110989","01/04/15","Fleet Services","Fleet Management","R4000"
"Wolverhampton City Council","http://opendatacommunities.org/id/metropolitan-district-council/wolverhampton","Evans Halshaw Ford","776205","12.25","Equipment - Purchase","190110990","01/04/15","Fleet Services","Fleet Management","R4000"
"Wolverhampton City Council","http://opendatacommunities.org/id/metropolitan-district-council/wolverhampton","Evans Halshaw Ford","776205","30.63","Equipment - Purchase","190110990","01/04/15","Fleet Services","Fleet Management","R4000"
"Wolverhampton City Council","http://opendatacommunities.org/id/metropolitan-district-council/wolverhampton","Evans Halshaw Ford","776205","29.72","Equipment - Purchase","190110990","01/04/15","Fleet Services","Fleet Management","R4000"
"Wolverhampton City Council","http://opendatacommunities.org/id/metropolitan-district-council/wolverhampton","Evans Halshaw Ford","776530","99.26","Equipment - Purchase","190110721","01/04/15","Fleet Services","Fleet Management","R4000"
"Wolverhampton City Council","http://opendatacommunities.org/id/metropolitan-district-council/wolverhampton","Evans Halshaw Ford","776526","19.13","Equipment - Purchase","190110720","01/04/15","Fleet Services","Fleet Management","R4000"
"Wolverhampton City Council","http://opendatacommunities.org/id/metropolitan-district-council/wolverhampton","Evans Halshaw Ford","776387","12.85","Equipment - Purchase","190110579","01/04/15","Fleet Services","Fleet Management","R4000"
"Wolverhampton City Council","http://opendatacommunities.org/id/metropolitan-district-council/wolverhampton","Evans Halshaw Ford","776749","25.22","Equipment - Purchase","190111216","01/04/15","Fleet Services","Fleet Management","R4000"
"Wolverhampton City Council","http://opendatacommunities.org/id/metropolitan-district-council/wolverhampton","Evans Halshaw Ford","776697","11.19","Equipment - Purchase","190111215","01/04/15","Fleet Services","Fleet Management","R4000"
"Wolverhampton City Council","http://opendatacommunities.org/id/metropolitan-district-council/wolverhampton","Evans Halshaw Ford","776865","25.22","Equipment - Purchase","190111217","01/04/15","Fleet Services","Fleet Management","R4000"
"Wolverhampton City Council","http://opendatacommunities.org/id/metropolitan-district-council/wolverhampton","Evans Halshaw Ford","776947","1.78","Equipment - Purchase","190111219","01/04/15","Fleet Services","Fleet Management","R4000"
"Wolverhampton City Council","http://opendatacommunities.org/id/metropolitan-district-council/wolverhampton","Evans Halshaw Ford","776870","11.19","Equipment - Purchase","190111218","01/04/15","Fleet Services","Fleet Management","R4000"
"Wolverhampton City Council","http://opendatacommunities.org/id/metropolitan-district-council/wolverhampton","Extra Personnel Limited","812575","512.31","Agency Staff","130064188","01/04/15","HR Advice","HR Advice","R1100"
"Wolverhampton City Council","http://opendatacommunities.org/id/metropolitan-district-council/wolverhampton","Extra Personnel Limited","807268","181.86","Agency Staff","130060378","01/04/15","Children in Need & Child Protection","CIN - Children�s Vilage CC - Area 8","R1100"
"Wolverhampton City Council","http://opendatacommunities.org/id/metropolitan-district-council/wolverhampton","Extra Personnel Limited","810724","122.88","Agency Staff","130062790","01/04/15","Children in Need & Child Protection","CIN - Children�s Vilage CC - Area 8","R1100"
"Wolverhampton City Council","http://opendatacommunities.org/id/metropolitan-district-council/wolverhampton","Extra Personnel Limited","782397","457.26","Agency Staff","130043115","01/04/15","Looked After Children","Adoption Reform","R1100"
"Wolverhampton City Council","http://opendatacommunities.org/id/metropolitan-district-council/wolverhampton","Extra Personnel Limited","780543","439.57","Agency Staff","130041953","01/04/15","Looked After Children","Adoption Reform","R1100"
"Wolverhampton City Council","http://opendatacommunities.org/id/metropolitan-district-council/wolverhampton","Extra Personnel Limited","783998","269.42","Agency Staff","130044274","01/04/15","Looked After Children","Adoption Reform","R1100"
"Wolverhampton City Council","http://opendatacommunities.org/id/metropolitan-district-council/wolverhampton","Extra Personnel Limited","778777","439.73","Agency Staff","130040923","01/04/15","Looked After Children","Adoption Reform","R1100"
"Wolverhampton City Council","http://opendatacommunities.org/id/metropolitan-district-council/wolverhampton","Extra Personnel Limited","800426","293.72","Agency Staff","130055559","01/04/15","Parking Services","Shopmobility","R1100"
"Wolverhampton City Council","http://opendatacommunities.org/id/metropolitan-district-council/wolverhampton","Extra Personnel Limited","810722","487.60","Agency Staff","130063311","01/04/15","HR Advice","HR Advice","R1100"
"Wolverhampton City Council","http://opendatacommunities.org/id/metropolitan-district-council/wolverhampton","Eyears","7023055","636.00","Agency Staff","130063592","01/04/15","Childrens Centres & Early Years","Children�s Village Children Centre (School Staff)","R1100"
"Wolverhampton City Council","http://opendatacommunities.org/id/metropolitan-district-council/wolverhampton","F Jennings & Sons Limited","HF/15/10/71M","336.00","Services - Professional Fees","130063938","01/04/15","Bereavement Services","Coroners","R4400"
"Wolverhampton City Council","http://opendatacommunities.org/id/metropolitan-district-council/wolverhampton","F Jennings & Sons Limited","HF/15/10/69M","336.00","Services - Professional Fees","130063937","01/04/15","Bereavement Services","Coroners","R4400"
"Wolverhampton City Council","http://opendatacommunities.org/id/metropolitan-district-council/wolverhampton","F Jennings & Sons Limited","HF/15/10/24M","367.50","Services - Professional Fees","130050352","01/04/15","Bereavement Services","Coroners","R4400"
"Wolverhampton City Council","http://opendatacommunities.org/id/metropolitan-district-council/wolverhampton","F.4.K. Limited","TFT Spring Final 15","2,890.00","Grant Payments","190110349","01/04/15","Childrens Centres & Early Years","2 Year Olds Pilot - Early Learning & Childcare","R4700"
"Wolverhampton City Council","http://opendatacommunities.org/id/metropolitan-district-council/wolverhampton","F.W. Bickford & Sons Limited","308816","1,700.00","Hire of Vehicles","190110982","01/04/15","Fleet Services","Fleet Management","R3200"
"Wolverhampton City Council","http://opendatacommunities.org/id/metropolitan-district-council/wolverhampton","Fitzgerald Contractors Limited","19072","7,101.70","Construction and Conversion","130063245","01/04/15","","Active Travel Programme","C1100"
"Wolverhampton City Council","http://opendatacommunities.org/id/metropolitan-district-council/wolverhampton","Flying Penguin Enterprises","190799","30.88","Equipment - Purchase","190111204","01/04/15","Fleet Services","Fleet Management","R4000"
"Wolverhampton City Council","http://opendatacommunities.org/id/metropolitan-district-council/wolverhampton","Flying Penguin Enterprises","190799","215.18","Equipment - Purchase","190111204","01/04/15","Fleet Services","Fleet Management","R4000"
"Wolverhampton City Council","http://opendatacommunities.org/id/metropolitan-district-council/wolverhampton","Flying Penguin Enterprises","190799","190.04","Equipment - Purchase","190111204","01/04/15","Fleet Services","Fleet Management","R4000"
"Wolverhampton City Council","http://opendatacommunities.org/id/metropolitan-district-council/wolverhampton","Flying Penguin Enterprises","190799","174.52","Equipment - Purchase","190111204","01/04/15","Fleet Services","Fleet Management","R4000"
"Wolverhampton City Council","http://opendatacommunities.org/id/metropolitan-district-council/wolverhampton","Flying Penguin Enterprises","190799","107.74","Equipment - Purchase","190111204","01/04/15","Fleet Services","Fleet Management","R4000"
"Wolverhampton City Council","http://opendatacommunities.org/id/metropolitan-district-council/wolverhampton","Flying Penguin Enterprises","190847","168.76","Equipment - Purchase","190111205","01/04/15","Fleet Services","Fleet Management","R4000"
"Wolverhampton City Council","http://opendatacommunities.org/id/metropolitan-district-council/wolverhampton","Forum Business Media Limited","14210301","110.98","Comms - Postage","130064046","01/04/15","Schools","Dovecotes Primary School","R4503"
"Wolverhampton City Council","http://opendatacommunities.org/id/metropolitan-district-council/wolverhampton","Frank Lockley","22","12.60","Subsistence","190111092","01/04/15","Culture Arts & Heritage","Black Country Echoes","R4610"
"Wolverhampton City Council","http://opendatacommunities.org/id/metropolitan-district-council/wolverhampton","Fred Smith & Sons (Motor Bodies) Limited","INV52138","183.34","Equipment - Purchase","190110997","01/04/15","Fleet Services","Fleet Management","R4000"
"Wolverhampton City Council","http://opendatacommunities.org/id/metropolitan-district-council/wolverhampton","Fred Steele Vending","01206940","251.90","Provisions (Resale)","130062136","01/04/15","Leisure Services","WV Active Catering","R4102"
"Wolverhampton City Council","http://opendatacommunities.org/id/metropolitan-district-council/wolverhampton","Fred Steele Vending","01206940","-251.90","Provisions (Resale)","130062136","01/04/15","Leisure Services","WV Active Catering","R4102"
"Wolverhampton City Council","http://opendatacommunities.org/id/metropolitan-district-council/wolverhampton","Fred Steele Vending","01206940","241.92","Provisions (Resale)","130062136","01/04/15","Leisure Services","WV Active Catering","R4102"
"Wolverhampton City Council","http://opendatacommunities.org/id/metropolitan-district-council/wolverhampton","Fred Steele Vending","01206940","9.98","Provisions (Resale)","130062136","01/04/15","Leisure Services","WV Active Catering","R4102"
"Wolverhampton City Council","http://opendatacommunities.org/id/metropolitan-district-council/wolverhampton","Fuller Music","R120598","8.83","Comms - Postage","130062525","01/04/15","School Planning & Resources","Music Support Team","R4503"
"Wolverhampton City Council","http://opendatacommunities.org/id/metropolitan-district-council/wolverhampton","Fuller Music","R120598","14.98","Equipment - R & M","130062525","01/04/15","School Planning & Resources","Music Support Team","R4003"
"Wolverhampton City Council","http://opendatacommunities.org/id/metropolitan-district-council/wolverhampton","Fuller Music","R120598","14.98","Equipment - R & M","130062525","01/04/15","School Planning & Resources","Music Support Team","R4003"
"Wolverhampton City Council","http://opendatacommunities.org/id/metropolitan-district-council/wolverhampton","Fuller Music","R120598","-14.98","Equipment - R & M","130062525","01/04/15","School Planning & Resources","Music Support Team","R4003"
"Wolverhampton City Council","http://opendatacommunities.org/id/metropolitan-district-council/wolverhampton","Gatenby Sanderson Limited","21106","23,180.00","Agency Staff","130060576","01/04/15","Strategic Director People","Strategic Director People","R1100"
"Wolverhampton City Council","http://opendatacommunities.org/id/metropolitan-district-council/wolverhampton","Gatenby Sanderson Limited","21267","12,413.50","Services - Consultants","130063776","01/04/15","Enterprise & Skills","Economic Development","R4404"
"Wolverhampton City Council","http://opendatacommunities.org/id/metropolitan-district-council/wolverhampton","Geeky Creative","511","200.00","Subscriptions","130063293","01/04/15","Buisness Continuity & Emergency Planning","Buisness Continuity & Emergency Planning","R4701"
"Wolverhampton City Council","http://opendatacommunities.org/id/metropolitan-district-council/wolverhampton","Geesink Norba Limited","B02601","56.78","Equipment - Purchase","190110991","01/04/15","Fleet Services","Fleet Management","R4000"
"Wolverhampton City Council","http://opendatacommunities.org/id/metropolitan-district-council/wolverhampton","Geesink Norba Limited","B02677","7.82","Equipment - Purchase","190111221","01/04/15","Fleet Services","Fleet Management","R4000"
"Wolverhampton City Council","http://opendatacommunities.org/id/metropolitan-district-council/wolverhampton","Geesink Norba Limited","B02677","59.74","Equipment - Purchase","190111221","01/04/15","Fleet Services","Fleet Management","R4000"
"Wolverhampton City Council","http://opendatacommunities.org/id/metropolitan-district-council/wolverhampton","Geesink Norba Limited","B02677","38.48","Equipment - Purchase","190111221","01/04/15","Fleet Services","Fleet Management","R4000"
"Wolverhampton City Council","http://opendatacommunities.org/id/metropolitan-district-council/wolverhampton","Glaze Auto Parts Limited","IN587026","21.06","Equipment - Purchase","190110994","01/04/15","Fleet Services","Fleet Management","R4000"
"Wolverhampton City Council","http://opendatacommunities.org/id/metropolitan-district-council/wolverhampton","Glaze Auto Parts Limited","IN587198","6.72","Equipment - Purchase","190110995","01/04/15","Fleet Services","Fleet Management","R4000"
"Wolverhampton City Council","http://opendatacommunities.org/id/metropolitan-district-council/wolverhampton","Glaze Auto Parts Limited","IN587198","41.25","Equipment - Purchase","190110995","01/04/15","Fleet Services","Fleet Management","R4000"
"Wolverhampton City Council","http://opendatacommunities.org/id/metropolitan-district-council/wolverhampton","Glaze Auto Parts Limited","IN587198","26.52","Equipment - Purchase","190110995","01/04/15","Fleet Services","Fleet Management","R4000"
"Wolverhampton City Council","http://opendatacommunities.org/id/metropolitan-district-council/wolverhampton","Glaze Auto Parts Limited","IN587198","2.25","Equipment - Purchase","190110995","01/04/15","Fleet Services","Fleet Management","R4000"
"Wolverhampton City Council","http://opendatacommunities.org/id/metropolitan-district-council/wolverhampton","Glaze Auto Parts Limited","IN587198","3.16","Equipment - Purchase","190110995","01/04/15","Fleet Services","Fleet Management","R4000"
"Wolverhampton City Council","http://opendatacommunities.org/id/metropolitan-district-council/wolverhampton","Glaze Auto Parts Limited","IN587198","3.17","Equipment - Purchase","190110995","01/04/15","Fleet Services","Fleet Management","R4000"
"Wolverhampton City Council","http://opendatacommunities.org/id/metropolitan-district-council/wolverhampton","Glaze Auto Parts Limited","IN587298","483.80","Equipment - Purchase","190110996","01/04/15","Fleet Services","Fleet Management","R4000"
"Wolverhampton City Council","http://opendatacommunities.org/id/metropolitan-district-council/wolverhampton","Glaze Auto Parts Limited","IN587077","72.30","Equipment - Purchase","190110723","01/04/15","Fleet Services","Fleet Management","R4000"
"Wolverhampton City Council","http://opendatacommunities.org/id/metropolitan-district-council/wolverhampton","Glaze Auto Parts Limited","IN587077","60.80","Equipment - Purchase","190110723","01/04/15","Fleet Services","Fleet Management","R4000"
"Wolverhampton City Council","http://opendatacommunities.org/id/metropolitan-district-council/wolverhampton","Glaze Auto Parts Limited","IN587077","6.87","Equipment - Purchase","190110723","01/04/15","Fleet Services","Fleet Management","R4000"
"Wolverhampton City Council","http://opendatacommunities.org/id/metropolitan-district-council/wolverhampton","Glaze Auto Parts Limited","IN587065","3.20","Equipment - Purchase","190110722","01/04/15","Fleet Services","Fleet Management","R4000"
"Wolverhampton City Council","http://opendatacommunities.org/id/metropolitan-district-council/wolverhampton","Glaze Auto Parts Limited","IN586998","12.31","Equipment - Purchase","190110588","01/04/15","Fleet Services","Fleet Management","R4000"
"Wolverhampton City Council","http://opendatacommunities.org/id/metropolitan-district-council/wolverhampton","Glaze Auto Parts Limited","IN587006","14.29","Equipment - Purchase","190110589","01/04/15","Fleet Services","Fleet Management","R4000"
"Wolverhampton City Council","http://opendatacommunities.org/id/metropolitan-district-council/wolverhampton","Glaze Auto Parts Limited","IN586622","31.71","Equipment - Purchase","190110586","01/04/15","Fleet Services","Fleet Management","R4000"
"Wolverhampton City Council","http://opendatacommunities.org/id/metropolitan-district-council/wolverhampton","Glaze Auto Parts Limited","IN586622","31.71","Equipment - Purchase","190110586","01/04/15","Fleet Services","Fleet Management","R4000"
"Wolverhampton City Council","http://opendatacommunities.org/id/metropolitan-district-council/wolverhampton","Glaze Auto Parts Limited","IN586753","175.00","Equipment - Purchase","190110587","01/04/15","Fleet Services","Fleet Management","R4000"
"Wolverhampton City Council","http://opendatacommunities.org/id/metropolitan-district-council/wolverhampton","Glaze Auto Parts Limited","IN587008","14.29","Equipment - Purchase","190110590","01/04/15","Fleet Services","Fleet Management","R4000"
"Wolverhampton City Council","http://opendatacommunities.org/id/metropolitan-district-council/wolverhampton","Glaze Auto Parts Limited","IN587038","53.76","Equipment - Purchase","190110591","01/04/15","Fleet Services","Fleet Management","R4000"
"Wolverhampton City Council","http://opendatacommunities.org/id/metropolitan-district-council/wolverhampton","Glaze Auto Parts Limited","IN586800","17.60","Equipment - Purchase","190110263","01/04/15","Fleet Services","Fleet Management","R4000"
"Wolverhampton City Council","http://opendatacommunities.org/id/metropolitan-district-council/wolverhampton","Glaze Auto Parts Limited","IN581957","14.57","Equipment - Purchase","190110262","01/04/15","Fleet Services","Fleet Management","R4000"
"Wolverhampton City Council","http://opendatacommunities.org/id/metropolitan-district-council/wolverhampton","Glaze Auto Parts Limited","IN581957","18.88","Equipment - Purchase","190110262","01/04/15","Fleet Services","Fleet Management","R4000"
"Wolverhampton City Council","http://opendatacommunities.org/id/metropolitan-district-council/wolverhampton","Glaze Auto Parts Limited","IN581957","37.69","Equipment - Purchase","190110262","01/04/15","Fleet Services","Fleet Management","R4000"
"Wolverhampton City Council","http://opendatacommunities.org/id/metropolitan-district-council/wolverhampton","Glaze Auto Parts Limited","IN586831","31.47","Equipment - Purchase","190110264","01/04/15","Fleet Services","Fleet Management","R4000"
"Wolverhampton City Council","http://opendatacommunities.org/id/metropolitan-district-council/wolverhampton","Glaze Auto Parts Limited","IN587530","3.20","Equipment - Purchase","190111230","01/04/15","Fleet Services","Fleet Management","R4000"
"Wolverhampton City Council","http://opendatacommunities.org/id/metropolitan-district-council/wolverhampton","Glaze Auto Parts Limited","IN587371","6.80","Equipment - Purchase","190111227","01/04/15","Fleet Services","Fleet Management","R4000"
"Wolverhampton City Council","http://opendatacommunities.org/id/metropolitan-district-council/wolverhampton","Glaze Auto Parts Limited","IN587149","29.94","Equipment - Purchase","190111225","01/04/15","Fleet Services","Fleet Management","R4000"
"Wolverhampton City Council","http://opendatacommunities.org/id/metropolitan-district-council/wolverhampton","Glaze Auto Parts Limited","IN587384","15.94","Equipment - Purchase","190111229","01/04/15","Fleet Services","Fleet Management","R4000"
"Wolverhampton City Council","http://opendatacommunities.org/id/metropolitan-district-council/wolverhampton","Glaze Auto Parts Limited","IN587381","23.98","Equipment - Purchase","190111228","01/04/15","Fleet Services","Fleet Management","R4000"
"Wolverhampton City Council","http://opendatacommunities.org/id/metropolitan-district-council/wolverhampton","Glaze Auto Parts Limited","IN587531","9.30","Equipment - Purchase","190111231","01/04/15","Fleet Services","Fleet Management","R4000"
"Wolverhampton City Council","http://opendatacommunities.org/id/metropolitan-district-council/wolverhampton","Glaze Auto Parts Limited","IN587354","47.24","Equipment - Purchase","190111226","01/04/15","Fleet Services","Fleet Management","R4000"
"Wolverhampton City Council","http://opendatacommunities.org/id/metropolitan-district-council/wolverhampton","Glaze Auto Parts Limited","IN587354","27.56","Equipment - Purchase","190111226","01/04/15","Fleet Services","Fleet Management","R4000"
"Wolverhampton City Council","http://opendatacommunities.org/id/metropolitan-district-council/wolverhampton","Goldthorn Youth Gym","03/14","88.00","Room Hire","130062588","01/04/15","Youth Offending","Youth Offending Team","R2201"
"Wolverhampton City Council","http://opendatacommunities.org/id/metropolitan-district-council/wolverhampton","Goldthorn Youth Gym","05/14","88.00","Room Hire","130062591","01/04/15","Youth Offending","Youth Offending Team","R2201"
"Wolverhampton City Council","http://opendatacommunities.org/id/metropolitan-district-council/wolverhampton","Greenhous Commercials Limited","13323431","31.66","Equipment - Purchase","190110255","01/04/15","Fleet Services","Fleet Management","R4000"
"Wolverhampton City Council","http://opendatacommunities.org/id/metropolitan-district-council/wolverhampton","Greenhous Commercials Limited","13323889","37.56","Equipment - Purchase","190110576","01/04/15","Fleet Services","Fleet Management","R4000"
"Wolverhampton City Council","http://opendatacommunities.org/id/metropolitan-district-council/wolverhampton","Greenhous Commercials Limited","13324928","44.00","Equipment - Purchase","190111191","01/04/15","Fleet Services","Fleet Management","R4000"
"Wolverhampton City Council","http://opendatacommunities.org/id/metropolitan-district-council/wolverhampton","Greenhous Commercials Limited","13630635","50.00","Services - Professional Fees","190111193","01/04/15","Fleet Services","Fleet Management","R4400"
"Wolverhampton City Council","http://opendatacommunities.org/id/metropolitan-district-council/wolverhampton","Greenhous Commercials Limited","13630860","45.00","Services - Professional Fees","190111195","01/04/15","Fleet Services","Fleet Management","R4400"
"Wolverhampton City Council","http://opendatacommunities.org/id/metropolitan-district-council/wolverhampton","Greenhous Commercials Limited","13630860","15.00","Services - Professional Fees","190111195","01/04/15","Fleet Services","Fleet Management","R4400"
"Wolverhampton City Council","http://opendatacommunities.org/id/metropolitan-district-council/wolverhampton","Greenhous Commercials Limited","13324928","108.74","Equipment - Purchase","190111191","01/04/15","Fleet Services","Fleet Management","R4000"
"Wolverhampton City Council","http://opendatacommunities.org/id/metropolitan-district-council/wolverhampton","Greenhous Commercials Limited","13324928","425.65","Equipment - Purchase","190111191","01/04/15","Fleet Services","Fleet Management","R4000"
"Wolverhampton City Council","http://opendatacommunities.org/id/metropolitan-district-council/wolverhampton","Greenhous Commercials Limited","13630860","68.00","Services - Professional Fees","190111195","01/04/15","Fleet Services","Fleet Management","R4400"
"Wolverhampton City Council","http://opendatacommunities.org/id/metropolitan-district-council/wolverhampton","Greenhous Commercials Limited","13324756","54.00","Equipment - Purchase","190111190","01/04/15","Fleet Services","Fleet Management","R4000"
"Wolverhampton City Council","http://opendatacommunities.org/id/metropolitan-district-council/wolverhampton","Greenhous Commercials Limited","13630858","45.00","Services - Professional Fees","190111194","01/04/15","Fleet Services","Fleet Management","R4400"
"Wolverhampton City Council","http://opendatacommunities.org/id/metropolitan-district-council/wolverhampton","Greenhous Commercials Limited","13630858","15.00","Services - Professional Fees","190111194","01/04/15","Fleet Services","Fleet Management","R4400"
"Wolverhampton City Council","http://opendatacommunities.org/id/metropolitan-district-council/wolverhampton","Ground Investigation & Piling Limited","30739","308.25","Services - Professional Fees","130064124","01/04/15","Estates and Valuations","Disposal Costs","R4400"
"Wolverhampton City Council","http://opendatacommunities.org/id/metropolitan-district-council/wolverhampton","Ground Investigation & Piling Limited","30651","4,106.36","Services - Professional Fees","130059868","01/04/15","Housing Revenue Account","HRA General","R4400"
"Wolverhampton City Council","http://opendatacommunities.org/id/metropolitan-district-council/wolverhampton","Ground Investigation & Piling Limited","30725","3,503.83","Construction and Conversion","130063554","01/04/15","","Primary Expansion Programme","C1100"
"Wolverhampton City Council","http://opendatacommunities.org/id/metropolitan-district-council/wolverhampton","Ground Investigation & Piling Limited","30713","911.33","Construction and Conversion","130062202","01/04/15","","Primary Expansion Programme","C1100"
"Wolverhampton City Council","http://opendatacommunities.org/id/metropolitan-district-council/wolverhampton","Ground Investigation & Piling Limited","30712","975.40","Construction and Conversion","130062048","01/04/15","","Primary Expansion Programme","C1100"
"Wolverhampton City Council","http://opendatacommunities.org/id/metropolitan-district-council/wolverhampton","Guest Motors Limited","13011800","84.60","Equipment - Purchase","190110719","01/04/15","Fleet Services","Fleet Management","R4000"
"Wolverhampton City Council","http://opendatacommunities.org/id/metropolitan-district-council/wolverhampton","Guest Motors Limited","13011800","16.75","Equipment - Purchase","190110719","01/04/15","Fleet Services","Fleet Management","R4000"
"Wolverhampton City Council","http://opendatacommunities.org/id/metropolitan-district-council/wolverhampton","Guest Motors Limited","13011799","84.60","Equipment - Purchase","190110718","01/04/15","Fleet Services","Fleet Management","R4000"
"Wolverhampton City Council","http://opendatacommunities.org/id/metropolitan-district-council/wolverhampton","Guest Motors Limited","13505544","80.00","Services - Professional Fees","190111192","01/04/15","Fleet Services","Fleet Management","R4400"
"Wolverhampton City Council","http://opendatacommunities.org/id/metropolitan-district-council/wolverhampton","Guest Motors Limited","13011842","50.27","Equipment - Purchase","190111189","01/04/15","Fleet Services","Fleet Management","R4000"
"Wolverhampton City Council","http://opendatacommunities.org/id/metropolitan-district-council/wolverhampton","Hags-Smp Limited Rss Playmakers","CR000810","-41.48","Equipment - R & M","130063626","01/04/15","Environmental Maintenance","Woodcross Park","R4003"
"Wolverhampton City Council","http://opendatacommunities.org/id/metropolitan-district-council/wolverhampton","Hags-Smp Limited Rss Playmakers","033499","331.28","Equipment - R & M","130063450","01/04/15","Environmental Maintenance","Muchall Park","R4003"
"Wolverhampton City Council","http://opendatacommunities.org/id/metropolitan-district-council/wolverhampton","Hags-Smp Limited Rss Playmakers","033055","41.48","Equipment - R & M","130063449","01/04/15","Environmental Maintenance","Woodcross Park","R4003"
"Wolverhampton City Council","http://opendatacommunities.org/id/metropolitan-district-council/wolverhampton","Hags-Smp Limited Rss Playmakers","034599","63.75","Equipment - R & M","130063451","01/04/15","Environmental Maintenance","Phoenix Park","R4003"
"Wolverhampton City Council","http://opendatacommunities.org/id/metropolitan-district-council/wolverhampton","Hags-Smp Limited Rss Playmakers","035441","23.52","Equipment - R & M","130063454","01/04/15","Environmental Maintenance","Parks - East Area Management","R4003"
"Wolverhampton City Council","http://opendatacommunities.org/id/metropolitan-district-council/wolverhampton","Hags-Smp Limited Rss Playmakers","035388","75.00","Equipment - R & M","130063453","01/04/15","Environmental Maintenance","Graiseley Recreation Ground","R4003"
"Wolverhampton City Council","http://opendatacommunities.org/id/metropolitan-district-council/wolverhampton","Hags-Smp Limited Rss Playmakers","034866","185.79","Equipment - R & M","130063452","01/04/15","Environmental Maintenance","Parks - East Area Management","R4003"
"Wolverhampton City Council","http://opendatacommunities.org/id/metropolitan-district-council/wolverhampton","Hags-Smp Limited Rss Playmakers","035457","275.50","Equipment - R & M","130063456","01/04/15","Environmental Maintenance","Heath Town Park","R4003"
"Wolverhampton City Council","http://opendatacommunities.org/id/metropolitan-district-council/wolverhampton","Hags-Smp Limited Rss Playmakers","035528","59.25","Equipment - R & M","130063457","01/04/15","Environmental Maintenance","Parks - East Area Management","R4003"
"Wolverhampton City Council","http://opendatacommunities.org/id/metropolitan-district-council/wolverhampton","Hags-Smp Limited Rss Playmakers","035452","120.00","Equipment - R & M","130063455","01/04/15","Environmental Maintenance","Pendeford Park","R4003"
"Wolverhampton City Council","http://opendatacommunities.org/id/metropolitan-district-council/wolverhampton","Hags-Smp Limited Rss Playmakers","035558","1,141.85","Equipment - R & M","130063458","01/04/15","Environmental Maintenance","Dixon Street Open Space","R4003"
"Wolverhampton City Council","http://opendatacommunities.org/id/metropolitan-district-council/wolverhampton","Hags-Smp Limited Rss Playmakers","035569","142.46","Equipment - R & M","130063459","01/04/15","Environmental Maintenance","Dixon Street Open Space","R4003"
"Wolverhampton City Council","http://opendatacommunities.org/id/metropolitan-district-council/wolverhampton","Hags-Smp Limited Rss Playmakers","CR000817","-54.40","Equipment - R & M","130063933","01/04/15","Environmental Maintenance","Muchall Park","R4003"
"Wolverhampton City Council","http://opendatacommunities.org/id/metropolitan-district-council/wolverhampton","Hags-Smp Limited Rss Playmakers","035453","11.40","Equipment - R & M","130064063","01/04/15","Environmental Maintenance","Bushbury Hill Open Space","R4003"
"Wolverhampton City Council","http://opendatacommunities.org/id/metropolitan-district-council/wolverhampton","Hags-Smp Limited Rss Playmakers","034888","45.00","Equipment - R & M","130064062","01/04/15","Environmental Maintenance","Muchall Park","R4003"
"Wolverhampton City Council","http://opendatacommunities.org/id/metropolitan-district-council/wolverhampton","Hags-Smp Limited Rss Playmakers","035454","23.75","Equipment - R & M","130064064","01/04/15","Environmental Maintenance","Bushbury Hill Open Space","R4003"
"Wolverhampton City Council","http://opendatacommunities.org/id/metropolitan-district-council/wolverhampton","Halcrow Group Limited","33356","1,000.00","Construction and Conversion","130063559","01/04/15","","Adaptations for People with Disabilites","C1100"
"Wolverhampton City Council","http://opendatacommunities.org/id/metropolitan-district-council/wolverhampton","Harveys Of Oldham (Holdings) Limited","451745","695.00","Clothing / Uniforms","130063107","01/04/15","Older People Provider Services","Woden Resource Centre","R4201"
"Wolverhampton City Council","http://opendatacommunities.org/id/metropolitan-district-council/wolverhampton","Harveys Of Oldham (Holdings) Limited","451745","-86.88","Clothing / Uniforms","130063107","01/04/15","Older People Provider Services","Woden Resource Centre","R4201"
"Wolverhampton City Council","http://opendatacommunities.org/id/metropolitan-district-council/wolverhampton","Hays Specialist Recruitment Limited","1005283921","651.60","Agency Staff","130063463","01/04/15","HR Advice","HR Advice","R1100"
"Wolverhampton City Council","http://opendatacommunities.org/id/metropolitan-district-council/wolverhampton","Hays Specialist Recruitment Limited","1005283042","688.08","Agency Staff","130063462","01/04/15","HR Advice","HR Advice","R1100"
"Wolverhampton City Council","http://opendatacommunities.org/id/metropolitan-district-council/wolverhampton","Hays Specialist Recruitment Limited","1005280710","584.00","Agency Staff","130063198","01/04/15","HR Advice","HR Advice","R1100"
"Wolverhampton City Council","http://opendatacommunities.org/id/metropolitan-district-council/wolverhampton","Hays Specialist Recruitment Limited","1005244829","544.00","Agency Staff","130063197","01/04/15","HR Advice","HR Advice","R1100"
"Wolverhampton City Council","http://opendatacommunities.org/id/metropolitan-district-council/wolverhampton","Synergy Recruitment Consultancy Ltd","SY154942","1,451.88","Agency Staff","130063124","01/04/15","Children in Need & Child Protection","CIN - Warstones MAST - Area 4","R1100"
"Wolverhampton City Council","http://opendatacommunities.org/id/metropolitan-district-council/wolverhampton","Heantun Care Children & Families","TFT Spring Final 15","14,840.00","Grant Payments","190110349","01/04/15","Childrens Centres & Early Years","2 Year Olds Pilot - Early Learning & Childcare","R4700"
"Wolverhampton City Council","http://opendatacommunities.org/id/metropolitan-district-council/wolverhampton","Heath Park School (Academy)","SEN Top Up Spring Term Heath Park","2,956.39","Grant Payments","190110836","01/04/15","Schools","Schools Other Related Expenditure - Contingencies","R4700"
"Wolverhampton City Council","http://opendatacommunities.org/id/metropolitan-district-council/wolverhampton","Higgs & Sons Solicitors","74876573","180.00","Services - Professional Fees","130064167","01/04/15","HR Advice","HR Advice","R4400"
"Wolverhampton City Council","http://opendatacommunities.org/id/metropolitan-district-council/wolverhampton","Hilton Main Construction Limited","25996","1,250.00","R&M - Departmental response (external)","130063788","01/04/15","Cleaning & Caretaking Service","Priory Green","R2003"
"Wolverhampton City Council","http://opendatacommunities.org/id/metropolitan-district-council/wolverhampton","Hilton Main Construction Limited","25997","11,760.30","R&M - Departmental response (external)","130063531","01/04/15","Cleaning & Caretaking Service","Hickman Avenue Depot","R2003"
"Wolverhampton City Council","http://opendatacommunities.org/id/metropolitan-district-council/wolverhampton","Hilton Main Construction Limited","25994","1,282.00","R&M - Departmental response (external)","130063529","01/04/15","Cleaning & Caretaking Service","Parkfields Office Accomodation","R2003"
"Wolverhampton City Council","http://opendatacommunities.org/id/metropolitan-district-council/wolverhampton","Hilton Main Construction Limited","25995","1,250.00","R&M - Departmental response (external)","130063530","01/04/15","Cleaning & Caretaking Service","Priory Green","R2003"
"Wolverhampton City Council","http://opendatacommunities.org/id/metropolitan-district-council/wolverhampton","Hilton Main Construction Limited","26027","2,498.50","R&M - Departmental response (external)","130064121","01/04/15","Parking Services","Car Parks Operational Staff","R2003"
"Wolverhampton City Council","http://opendatacommunities.org/id/metropolitan-district-council/wolverhampton","Hilton Main Construction Limited","25921","1,300.00","Hire of Vehicles","190110980","01/04/15","Fleet Services","Fleet Management","R3200"
"Wolverhampton City Council","http://opendatacommunities.org/id/metropolitan-district-council/wolverhampton","Hilton Main Construction Limited","25920","1,300.00","Hire of Vehicles","190110979","01/04/15","Fleet Services","Fleet Management","R3200"
"Wolverhampton City Council","http://opendatacommunities.org/id/metropolitan-district-council/wolverhampton","Hilton Main Construction Limited","26002","9,653.09","R&M - Departmental response (external)","130063541","01/04/15","Highways Maintenance","Patching","R2003"
"Wolverhampton City Council","http://opendatacommunities.org/id/metropolitan-district-council/wolverhampton","Hilton Main Construction Limited","25999","7,812.00","R&M - Departmental response (external)","130063533","01/04/15","Highways Maintenance","Patching","R2003"
"Wolverhampton City Council","http://opendatacommunities.org/id/metropolitan-district-council/wolverhampton","Hilton Main Construction Limited","25998","4,750.00","R&M - Departmental response (external)","130063532","01/04/15","Highways Maintenance","Patching","R2003"
"Wolverhampton City Council","http://opendatacommunities.org/id/metropolitan-district-council/wolverhampton","Hilton Main Construction Limited","25985","13,600.00","Services - Professional Fees","130063528","01/04/15","Environmental Maintenance","Pest Control","R4400"
"Wolverhampton City Council","http://opendatacommunities.org/id/metropolitan-district-council/wolverhampton","Hilton Main Construction Limited","26001","1,028.95","R&M - Departmental response (external)","130063540","01/04/15","Highways Maintenance","Winter Maintenance","R2003"
"Wolverhampton City Council","http://opendatacommunities.org/id/metropolitan-district-council/wolverhampton","Hilton Main Construction Limited","25880","246.28","R&M - Departmental response (external)","130058939","01/04/15","Parking Services","Car Parks Operational Staff","R2003"
"Wolverhampton City Council","http://opendatacommunities.org/id/metropolitan-district-council/wolverhampton","Hilton Main Construction Limited","25958","9,165.60","Construction and Conversion","130061783","01/04/15","","West Midlands UTC","C1100"
"Wolverhampton City Council","http://opendatacommunities.org/id/metropolitan-district-council/wolverhampton","Home Tuition Services","March 2015","180.00","Services - Professional Fees","130062871","01/04/15","Looked After Children","LAC Education Team (LACE)","R4400"
"Wolverhampton City Council","http://opendatacommunities.org/id/metropolitan-district-council/wolverhampton","Home Tuition Services","March 2015","-180.00","Services - Professional Fees","130062871","01/04/15","Looked After Children","LAC Education Team (LACE)","R4400"
"Wolverhampton City Council","http://opendatacommunities.org/id/metropolitan-district-council/wolverhampton","Home Tuition Services","March 2015","180.00","Services - Professional Fees","130062871","01/04/15","Looked After Children","LAC Education Team (LACE)","R4400"
"Wolverhampton City Council","http://opendatacommunities.org/id/metropolitan-district-council/wolverhampton","Horizon Care & Education Group Limited","3419","12,675.00","TPP - Independent Schools","130063279","01/04/15","Special Educational Needs","SEN Education OOC","R5036"
"Wolverhampton City Council","http://opendatacommunities.org/id/metropolitan-district-council/wolverhampton","Horizon Care & Education Group Limited","3360","12,675.00","TPP - Independent Schools","130063278","01/04/15","Special Educational Needs","SEN Education OOC","R5036"
"Wolverhampton City Council","http://opendatacommunities.org/id/metropolitan-district-council/wolverhampton","Horizon Care & Education Group Limited","3286","12,675.00","TPP - Independent Schools","130058950","01/04/15","Special Educational Needs","SEN Education OOC","R5036"
"Wolverhampton City Council","http://opendatacommunities.org/id/metropolitan-district-council/wolverhampton","Horizon Care & Education Group Limited","3281.","12,675.00","TPP - Independent Schools","130063558","01/04/15","Special Educational Needs","SEN Education OOC","R5036"
"Wolverhampton City Council","http://opendatacommunities.org/id/metropolitan-district-council/wolverhampton","Horizon Care & Education Group Limited","3421","12,675.00","TPP - Independent Schools","130063560","01/04/15","Special Educational Needs","SEN Education OOC","R5036"
"Wolverhampton City Council","http://opendatacommunities.org/id/metropolitan-district-council/wolverhampton","HSS Hire Service Group Limited","11581829","140.68","Training Expenses","130063738","01/04/15","Audit Services","Site Management Health & Safety","R1650"
"Wolverhampton City Council","http://opendatacommunities.org/id/metropolitan-district-council/wolverhampton","HSS Hire Service Group Limited","11581829","-140.68","Training Expenses","130063738","01/04/15","Audit Services","Site Management Health & Safety","R1650"
"Wolverhampton City Council","http://opendatacommunities.org/id/metropolitan-district-council/wolverhampton","HSS Hire Service Group Limited","11581829","140.68","Training Expenses","130063738","01/04/15","Audit Services","Site Management Health & Safety","R1650"
"Wolverhampton City Council","http://opendatacommunities.org/id/metropolitan-district-council/wolverhampton","Hyrodec (UK) Limited T/A Oss Group","OP/1086738","255.00","Equipment - Purchase","190111001","01/04/15","Fleet Services","Fleet Management","R4000"
"Wolverhampton City Council","http://opendatacommunities.org/id/metropolitan-district-council/wolverhampton","Ian Rigby","01694","125.00","Gratuities","130063191","01/04/15","HR Advice","HR Advice","R1402"
"Wolverhampton City Council","http://opendatacommunities.org/id/metropolitan-district-council/wolverhampton","Initial Facilities - Water Services","VWM54178","62,195.08","Construction and Conversion","130063692","01/04/15","","Primary Expansion Programme","C1100"
"Wolverhampton City Council","http://opendatacommunities.org/id/metropolitan-district-council/wolverhampton","Initial Projects Limited T/A Enitial","67492","2,235.21","Services - Professional Fees","130063296","01/04/15","Regulatory Services","Bowmans Harbour","R4400"
"Wolverhampton City Council","http://opendatacommunities.org/id/metropolitan-district-council/wolverhampton","Initial Washroom Solutions","14344206","52.09","Equipment - Hire","130062690","01/04/15","Cleaning & Caretaking Service","Hickman Avenue Depot","R4001"
"Wolverhampton City Council","http://opendatacommunities.org/id/metropolitan-district-council/wolverhampton","Initial Washroom Solutions","14305257","52.09","Equipment - Hire","130062689","01/04/15","Cleaning & Caretaking Service","Hickman Avenue Depot","R4001"
"Wolverhampton City Council","http://opendatacommunities.org/id/metropolitan-district-council/wolverhampton","Instarmac Group PLC","482725","954.20","Materials","130063845","01/04/15","Street Lighting","Street Lighting Maintenance","R4007"
"Wolverhampton City Council","http://opendatacommunities.org/id/metropolitan-district-council/wolverhampton","Interia Products Limited-Xtradingpos","IPL0001","196.50","Equipment - Purchase","190110764","01/04/15","Housing Revenue Account","Hostels / Outreach","R4000"
"Wolverhampton City Council","http://opendatacommunities.org/id/metropolitan-district-council/wolverhampton","J A Foulkes Ltd","2450","805.20","Services - Professional Fees","130054796","01/04/15","Looked After Children","Looked After Team 1","R4400"
"Wolverhampton City Council","http://opendatacommunities.org/id/metropolitan-district-council/wolverhampton","J Beddow Assocs/Walsall Contact Ctre","W11014","105.00","TPP - Social Care Support Services","130061053","01/04/15","Looked After Children","Looked After Team 1","R5501"
"Wolverhampton City Council","http://opendatacommunities.org/id/metropolitan-district-council/wolverhampton","J P Lennard Limited","741223","246.70","Equipment - R & M","130063079","01/04/15","Leisure Services","Central Baths","R4003"
"Wolverhampton City Council","http://opendatacommunities.org/id/metropolitan-district-council/wolverhampton","J P Lennard Limited","741223","13.30","Comms - Postage","130063079","01/04/15","Leisure Services","Central Baths","R4503"
"Wolverhampton City Council","http://opendatacommunities.org/id/metropolitan-district-council/wolverhampton","J.Walsh Designs","JWS/1928LP","216.00","Services - Professional Fees","130063382","01/04/15","Bereavement Services","Cemeteries","R4400"
"Wolverhampton City Council","http://opendatacommunities.org/id/metropolitan-district-council/wolverhampton","Jackdaw (Tools) Limited","JV279643","11.71","Equipment - Purchase","190110592","01/04/15","Fleet Services","Fleet Management","R4000"
"Wolverhampton City Council","http://opendatacommunities.org/id/metropolitan-district-council/wolverhampton","Jacobs U.K.Limited","B1018000-169-003CR","-676.40","R&M - Departmental planned (external)","130063696","01/04/15","School Planning & Resources","Building Schools for the Future (BSF)","R2001"
"Wolverhampton City Council","http://opendatacommunities.org/id/metropolitan-district-council/wolverhampton","Jacobs U.K.Limited","B1018000-168A-002CR","-2,809.73","R&M - Departmental planned (external)","130063697","01/04/15","School Planning & Resources","Building Schools for the Future (BSF)","R2001"
"Wolverhampton City Council","http://opendatacommunities.org/id/metropolitan-district-council/wolverhampton","Jacobs U.K.Limited","B1018000-168A-008CR","-818.00","R&M - Departmental planned (external)","130063695","01/04/15","School Planning & Resources","Building Schools for the Future (BSF)","R2001"
"Wolverhampton City Council","http://opendatacommunities.org/id/metropolitan-district-council/wolverhampton","Jacobs U.K.Limited","B1018000 - 179 - 030","9,137.62","Services - Professional Fees","130063895","01/04/15","Planning","Planning","R4400"
"Wolverhampton City Council","http://opendatacommunities.org/id/metropolitan-district-council/wolverhampton","Jacobs U.K.Limited","B1018000-179-005","4,452.87","Services - Professional Fees","130063898","01/04/15","School Planning & Resources","Building Schools for the Future (BSF)","R4400"
"Wolverhampton City Council","http://opendatacommunities.org/id/metropolitan-district-council/wolverhampton","Jacobs U.K.Limited","B1018000-179-015","2,682.00","Services - Professional Fees","130063907","01/04/15","Estates and Valuations","Disposal Costs","R4400"
"Wolverhampton City Council","http://opendatacommunities.org/id/metropolitan-district-council/wolverhampton","Jacobs U.K.Limited","B1018000-179-010","4,447.92","Services - Professional Fees","130063902","01/04/15","Cleaning & Caretaking Service","Culwell Street Depot","R4400"
"Wolverhampton City Council","http://opendatacommunities.org/id/metropolitan-district-council/wolverhampton","Jacobs U.K.Limited","B1018000-179-019","78,720.40","Construction and Conversion","130063911","01/04/15","","Black Country Growth Deal � Cultural Programme","C1100"
"Wolverhampton City Council","http://opendatacommunities.org/id/metropolitan-district-council/wolverhampton","Jacobs U.K.Limited","B1018000-179-013","975.00","Construction and Conversion","130063905","01/04/15","","Primary Expansion Programme","C1100"
"Wolverhampton City Council","http://opendatacommunities.org/id/metropolitan-district-council/wolverhampton","Jacobs U.K.Limited","B1018000-179-009","191.64","Construction and Conversion","130063901","01/04/15","","Redevelopment of Tower & Fort Works Site","C1100"
"Wolverhampton City Council","http://opendatacommunities.org/id/metropolitan-district-council/wolverhampton","Jacobs U.K.Limited","B1018000-179-011","191.64","Construction and Conversion","130063903","01/04/15","","Other Stock Condition Rolling Programmes","C1100"
"Wolverhampton City Council","http://opendatacommunities.org/id/metropolitan-district-council/wolverhampton","Jacobs U.K.Limited","B1018000-179-029","11,328.00","Services - Professional Fees","130063921","01/04/15","Property Services","Property Services - Wolverhampton Homes","R4400"
"Wolverhampton City Council","http://opendatacommunities.org/id/metropolitan-district-council/wolverhampton","Jacobs U.K.Limited","B1018000-179-026","480.00","Construction and Conversion","130063918","01/04/15","","Other Stock Condition Rolling Programmes","C1100"
"Wolverhampton City Council","http://opendatacommunities.org/id/metropolitan-district-council/wolverhampton","Jacobs U.K.Limited","B1018000-179-024","900.00","Services - Professional Fees","130063916","01/04/15","Engineering & Civic Centre","Statutory Services (10RM)","R4400"
"Wolverhampton City Council","http://opendatacommunities.org/id/metropolitan-district-council/wolverhampton","Jacobs U.K.Limited","B1018000-179-025","1,000.00","Services - Professional Fees","130063917","01/04/15","School Planning & Resources","School Organisation & Policy","R4400"
"Wolverhampton City Council","http://opendatacommunities.org/id/metropolitan-district-council/wolverhampton","Jacobs U.K.Limited","B1018000-179-020","3,703.29","Construction and Conversion","130063912","01/04/15","","Universal Infant Free School Meals","C1100"
"Wolverhampton City Council","http://opendatacommunities.org/id/metropolitan-district-council/wolverhampton","Jacobs U.K.Limited","B1018000-179-021","5,901.38","Services - Professional Fees","130063913","01/04/15","Physical Regeneration","Westside","R4400"
"Wolverhampton City Council","http://opendatacommunities.org/id/metropolitan-district-council/wolverhampton","Jacobs U.K.Limited","B1P18000-179-006","1,773.26","Construction and Conversion","130063922","01/04/15","","Black Country Growth Deal � Cultural Programme","C1100"
"Wolverhampton City Council","http://opendatacommunities.org/id/metropolitan-district-council/wolverhampton","Jacobs U.K.Limited","B1018000-179-018","2,180.00","Construction and Conversion","130063910","01/04/15","","Future Spaces","C1100"
"Wolverhampton City Council","http://opendatacommunities.org/id/metropolitan-district-council/wolverhampton","Jacobs U.K.Limited","B1018000-179-004","293.10","R&M - Departmental planned (external)","130063897","01/04/15","Property Services","Property Services - Wolverhampton Homes","R2001"
"Wolverhampton City Council","http://opendatacommunities.org/id/metropolitan-district-council/wolverhampton","Jacobs U.K.Limited","B1018000-179-012","383.28","Construction and Conversion","130063904","01/04/15","","Other Stock Condition Rolling Programmes","C1100"
"Wolverhampton City Council","http://opendatacommunities.org/id/metropolitan-district-council/wolverhampton","Jacobs U.K.Limited","B1018000-179-014","95.82","Services - Professional Fees","130063906","01/04/15","Property Services","Property Services - Wolverhampton Homes","R4400"
"Wolverhampton City Council","http://opendatacommunities.org/id/metropolitan-district-council/wolverhampton","Jacobs U.K.Limited","B1018000 - 179 - 001","7,309.00","R&M - Departmental planned (external)","130063894","01/04/15","Property Services","Property Services - Delivery","R2001"
"Wolverhampton City Council","http://opendatacommunities.org/id/metropolitan-district-council/wolverhampton","Jacobs U.K.Limited","B1018000-178-004","1,847.98","Construction and Conversion","130058577","01/04/15","","Demolition of Bilston Leisure Centre/ Former Day Centre","C1100"
"Wolverhampton City Council","http://opendatacommunities.org/id/metropolitan-district-council/wolverhampton","Jacobs U.K.Limited","B1018000-179-028","61,622.00","Services - Professional Fees","130063920","01/04/15","Property Services","Property Services - Wolverhampton Homes","R4400"
"Wolverhampton City Council","http://opendatacommunities.org/id/metropolitan-district-council/wolverhampton","Jacobs U.K.Limited","B1018000-179-022","25,168.80","Grants paid out","130063914","01/04/15","","Corporate Asset Management","C5000"
"Wolverhampton City Council","http://opendatacommunities.org/id/metropolitan-district-council/wolverhampton","Jacobs U.K.Limited","81018000 - 179 - 002","20,648.50","Construction and Conversion","130063868","01/04/15","","Decent Homes - Stock Improvements","C1100"
"Wolverhampton City Council","http://opendatacommunities.org/id/metropolitan-district-council/wolverhampton","Jacobs U.K.Limited","B1018000-179-016","55,949.00","Construction and Conversion","130063908","01/04/15","Corporate Asset Management","Statutory Surveys","C1100"
"Wolverhampton City Council","http://opendatacommunities.org/id/metropolitan-district-council/wolverhampton","Jacobs U.K.Limited","B1018000-179-003","12,122.00","R&M - Departmental planned (external)","130063896","01/04/15","Engineering & Civic Centre","Statutory Services (10RM)","R2001"
"Wolverhampton City Council","http://opendatacommunities.org/id/metropolitan-district-council/wolverhampton","Jacobs U.K.Limited","B1018000-179-007","135.27","Construction and Conversion","130063899","01/04/15","","Environmental Health Cemeteries / Crematoria","C1100"
"Wolverhampton City Council","http://opendatacommunities.org/id/metropolitan-district-council/wolverhampton","James Lister & Sons Limited","0100/ 02464988","72.50","Protective Clothing","130063707","01/04/15","Fleet Services","Passenger Transport - General","R4200"
"Wolverhampton City Council","http://opendatacommunities.org/id/metropolitan-district-council/wolverhampton","James Lister & Sons Limited","240-02463063","35.00","Equipment - Purchase","190111207","01/04/15","Fleet Services","Fleet Management","R4000"
"Wolverhampton City Council","http://opendatacommunities.org/id/metropolitan-district-council/wolverhampton","James Lister & Sons Limited","240-02463062","160.09","Equipment - Purchase","190111206","01/04/15","Fleet Services","Fleet Management","R4000"
"Wolverhampton City Council","http://opendatacommunities.org/id/metropolitan-district-council/wolverhampton","James Lister & Sons Limited","175-02464148","33.59","Equipment - Purchase","190111203","01/04/15","Fleet Services","Fleet Management","R4000"
"Wolverhampton City Council","http://opendatacommunities.org/id/metropolitan-district-council/wolverhampton","James Lister & Sons Limited","0100/ 02455962","14.20","Protective Clothing","130059372","01/04/15","Markets","Bilston Market and Licensed Operations","R4200"
"Wolverhampton City Council","http://opendatacommunities.org/id/metropolitan-district-council/wolverhampton","James Lister & Sons Limited","0100/ 02464067","119.80","Protective Clothing","130063438","01/04/15","Fleet Services","Passenger Transport - General","R4200"
"Wolverhampton City Council","http://opendatacommunities.org/id/metropolitan-district-council/wolverhampton","James Lister & Sons Limited","0100/ 02464991","240.50","Protective Clothing","130063710","01/04/15","Cleaning & Caretaking Service","Cleaning of Buildings - General","R4200"
"Wolverhampton City Council","http://opendatacommunities.org/id/metropolitan-district-council/wolverhampton","James Lister & Sons Limited","0100/ 02464989","79.50","Protective Clothing","130063708","01/04/15","Environmental Maintenance","Ground Maintenance West","R4200"
"Wolverhampton City Council","http://opendatacommunities.org/id/metropolitan-district-council/wolverhampton","James Lister & Sons Limited","0100/ 02464066","-27.54","Protective Clothing","130063437","01/04/15","Housing Revenue Account","Hostels / Outreach","R4200"
"Wolverhampton City Council","http://opendatacommunities.org/id/metropolitan-district-council/wolverhampton","James Lister & Sons Limited","0100/ 02464066","27.54","Protective Clothing","130063437","01/04/15","Housing Revenue Account","Hostels / Outreach","R4200"
